Workbook

Sheet Comparison
A1: FHWA, HCFB-11 | B1: U.S. DEPARTMENT OF TRANSPORTATION | L1: 2015-12-01
A2: TA | B2: FEDERAL HIGHWAY ADMINISTRATION
B5: COMPARISON OF ACTUAL FY 2015 APPORTIONMENTS UNDER THE HIGHWAY AND TRANSPORTATION FUNDING ACT OF 2014, AS AMENDED, AND ESTIMATED
B6: FY 2016 - FY 2020 APPORTIONMENTS UNDER THE CONFERENCE REPORT FOR H.R. 22 (FAST ACT)
B7: (before post-apportionment setasides; before penalties; before sequestration)
C10: Actual | E10: Est. | F10: Est. | G10: Est. | H10: Est. | I10: Est. | J10: FY 2016 to 2020 | K10: FY 2016 to 2020
B11: State | C11: FY 2015 | E11: FY 2016 | F11: FY 2017 | G11: FY 2018 | H11: FY 2019 | I11: FY 2020 | J11: Total | K11: Average
B13: Alabama | C13: 732263043 | E13: ='FY 2016'!L13 -> 769571910 | F13: ='FY 2017'!L13 -> 785463731 | G13: ='FY 2018'!L13 -> 802438701 | H13: ='FY 2019'!L13 -> 820550261 | I13: ='FY 2020'!L13 -> 840202114 | J13: =SUM(E13:I13) -> 4018226717 | K13: =AVERAGE(E13:I13) -> 803645343.4
B14: Alaska | C14: 483955039 | E14: ='FY 2016'!L14 -> 508614600 | F14: ='FY 2017'!L14 -> 519117557 | G14: ='FY 2018'!L14 -> 530336370 | H14: ='FY 2019'!L14 -> 542306359 | I14: ='FY 2020'!L14 -> 555294332 | J14: 2655669218 | K14: 531133843.6
B15: Arizona | C15: 706182063 | E15: ='FY 2016'!L15 -> 742166445 | F15: ='FY 2017'!L15 -> 757492248 | G15: ='FY 2018'!L15 -> 773862621 | H15: ='FY 2019'!L15 -> 791329101 | I15: ='FY 2020'!L15 -> 810281016 | J15: 3875131431 | K15: 775026286.2
B16: Arkansas | C16: 499714166 | E16: ='FY 2016'!L16 -> 525175061 | F16: ='FY 2017'!L16 -> 536020027 | G16: ='FY 2018'!L16 -> 547604161 | H16: ='FY 2019'!L16 -> 559963932 | I16: ='FY 2020'!L16 -> 573374836 | J16: 2742138017 | K16: 548427603.4
B17: California | C17: 3542468412 | E17: ='FY 2016'!L17 -> 3723001547 | F17: ='FY 2017'!L17 -> 3799881396 | G17: ='FY 2018'!L17 -> 3882001196 | H17: ='FY 2019'!L17 -> 3969619475 | I17: ='FY 2020'!L17 -> 4064689233 | J17: 19439192847 | K17: 3887838569
B18: Colorado | C18: 516112989 | E18: ='FY 2016'!L18 -> 542412699 | F18: ='FY 2017'!L18 -> 553613557 | G18: ='FY 2018'!L18 -> 565577841 | H18: ='FY 2019'!L18 -> 578343213 | I18: ='FY 2020'!L18 -> 592194216 | J18: 2832141526 | K18: 566428305.2
B19: Connecticut | C19: 484770705 | E19: ='FY 2016'!L19 -> 509473713 | F19: ='FY 2017'!L19 -> 519994372 | G19: ='FY 2018'!L19 -> 531232092 | H19: ='FY 2019'!L19 -> 543222256 | I19: ='FY 2020'!L19 -> 556232120 | J19: 2660154553 | K19: 532030910.6
B20: Delaware | C20: 163267961 | E20: ='FY 2016'!L20 -> 171587491 | F20: ='FY 2017'!L20 -> 175130787 | G20: ='FY 2018'!L20 -> 178915587 | H20: ='FY 2019'!L20 -> 182953804 | I20: ='FY 2020'!L20 -> 187335451 | J20: 895923120 | K20: 179184624
B21: Dist. of Col. | C21: 154002708 | E21: ='FY 2016'!L21 -> 161850034 | F21: ='FY 2017'!L21 -> 165192253 | G21: ='FY 2018'!L21 -> 168762270 | H21: ='FY 2019'!L21 -> 172571324 | I21: ='FY 2020'!L21 -> 176704316 | J21: 845080197 | K21: 169016039.4
B22: Florida | C22: 1828689002 | E22: ='FY 2016'!L22 -> 1921860645 | F22: ='FY 2017'!L22 -> 1961547473 | G22: ='FY 2018'!L22 -> 2003939263 | H22: ='FY 2019'!L22 -> 2049169471 | I22: ='FY 2020'!L22 -> 2098246272 | J22: 10034763124 | K22: 2006952625
B23: Georgia | C23: 1246238772 | E23: ='FY 2016'!L23 -> 1309739819 | F23: ='FY 2017'!L23 -> 1336786115 | G23: ='FY 2018'!L23 -> 1365675824 | H23: ='FY 2019'!L23 -> 1396499894 | I23: ='FY 2020'!L23 -> 1429945392 | J23: 6838647044 | K23: 1367729409
B24: Hawaii | C24: 163244192 | E24: ='FY 2016'!L24 -> 171562378 | F24: ='FY 2017'!L24 -> 175105158 | G24: ='FY 2018'!L24 -> 178889407 | H24: ='FY 2019'!L24 -> 182927036 | I24: ='FY 2020'!L24 -> 187308045 | J24: 895792024 | K24: 179158404.8
B25: Idaho | C25: 276061294 | E25: ='FY 2016'!L25 -> 290127532 | F25: ='FY 2017'!L25 -> 296118707 | G25: ='FY 2018'!L25 -> 302518228 | H25: ='FY 2019'!L25 -> 309346239 | I25: ='FY 2020'!L25 -> 316754938 | J25: 1514865644 | K25: 302973128.8
B26: Illinois | C26: 1372231384 | E26: ='FY 2016'!L26 -> 1442156608 | F26: ='FY 2017'!L26 -> 1471937238 | G26: ='FY 2018'!L26 -> 1503747647 | H26: ='FY 2019'!L26 -> 1537687978 | I26: ='FY 2020'!L26 -> 1574514759 | J26: 7530044230 | K26: 1506008846
B27: Indiana | C27: 919668926 | E27: ='FY 2016'!L27 -> 966529532 | F27: ='FY 2017'!L27 -> 986488498 | G27: ='FY 2018'!L27 -> 1007807822 | H27: ='FY 2019'!L27 -> 1030554618 | I27: ='FY 2020'!L27 -> 1055235912 | J27: 5046616382 | K27: 1009323276
B28: Iowa | C28: 474345450 | E28: ='FY 2016'!L28 -> 498513780 | F28: ='FY 2017'!L28 -> 508808186 | G28: ='FY 2018'!L28 -> 519804234 | H28: ='FY 2019'!L28 -> 531536542 | I28: ='FY 2020'!L28 -> 544266622 | J28: 2602929364 | K28: 520585872.8
B29: Kansas | C29: 364737489 | E29: ='FY 2016'!L29 -> 383321318 | F29: ='FY 2017'!L29 -> 391236975 | G29: ='FY 2018'!L29 -> 399692143 | H29: ='FY 2019'!L29 -> 408713444 | I29: ='FY 2020'!L29 -> 418501959 | J29: 2001465839 | K29: 400293167.8
B30: Kentucky | C30: 641292458 | E30: ='FY 2016'!L30 -> 673966719 | F30: ='FY 2017'!L30 -> 687884265 | G30: ='FY 2018'!L30 -> 702750398 | H30: ='FY 2019'!L30 -> 718611920 | I30: ='FY 2020'!L30 -> 735822382 | J30: 3519035684 | K30: 703807136.8
B31: Louisiana | C31: 677413014 | E31: ='FY 2016'!L31 -> 711927496 | F31: ='FY 2017'!L31 -> 726628943 | G31: ='FY 2018'!L31 -> 742332405 | H31: ='FY 2019'!L31 -> 759087323 | I31: ='FY 2020'!L31 -> 777267157 | J31: 3717243324 | K31: 743448664.8
B32: Maine | C32: 178165560 | E32: ='FY 2016'!L32 -> 187243965 | F32: ='FY 2017'!L32 -> 191110574 | G32: ='FY 2018'!L32 -> 195240722 | H32: ='FY 2019'!L32 -> 199647412 | I32: ='FY 2020'!L32 -> 204428868 | J32: 977671541 | K32: 195534308.2
B33: Maryland | C33: 580007300 | E33: ='FY 2016'!L33 -> 609563599 | F33: ='FY 2017'!L33 -> 622151114 | G33: ='FY 2018'!L33 -> 635596565 | H33: ='FY 2019'!L33 -> 649942279 | I33: ='FY 2020'!L33 -> 665508023 | J33: 3182761580 | K33: 636552316
B34: Massachusetts | C34: 586191765 | E34: ='FY 2016'!L34 -> 616064316 | F34: ='FY 2017'!L34 -> 628786048 | G34: ='FY 2018'!L34 -> 642374865 | H34: ='FY 2019'!L34 -> 656873544 | I34: ='FY 2020'!L34 -> 672605261 | J34: 3216704034 | K34: 643340806.8
B35: Michigan | C35: 1016207628 | E35: ='FY 2016'!L35 -> 1067989869 | F35: ='FY 2017'!L35 -> 1090043951 | G35: ='FY 2018'!L35 -> 1113601188 | H35: ='FY 2019'!L35 -> 1138735743 | I35: ='FY 2020'!L35 -> 1166007859 | J35: 5576378610 | K35: 1115275722
B36: Minnesota | C36: 629372872 | E36: ='FY 2016'!L36 -> 661441891 | F36: ='FY 2017'!L36 -> 675100754 | G36: ='FY 2018'!L36 -> 689690575 | H36: ='FY 2019'!L36 -> 705257282 | I36: ='FY 2020'!L36 -> 722147855 | J36: 3453638357 | K36: 690727671.4
B37: Mississippi | C37: 466803812 | E37: ='FY 2016'!L37 -> 490587875 | F37: ='FY 2017'!L37 -> 500718610 | G37: ='FY 2018'!L37 -> 511539831 | H37: ='FY 2019'!L37 -> 523085607 | I37: ='FY 2020'!L37 -> 535613291 | J37: 2561545214 | K37: 512309042.8
B38: Missouri | C38: 913719741 | E38: ='FY 2016'!L38 -> 960274903 | F38: ='FY 2017'!L38 -> 980104758 | G38: ='FY 2018'!L38 -> 1001286170 | H38: ='FY 2019'!L38 -> 1023885822 | I38: ='FY 2020'!L38 -> 1048407455 | J38: 5013959108 | K38: 1002791822
B39: Montana | C39: 396007464 | E39: ='FY 2016'!L39 -> 416184959 | F39: ='FY 2017'!L39 -> 424779247 | G39: ='FY 2018'!L39 -> 433959302 | H39: ='FY 2019'!L39 -> 443754023 | I39: ='FY 2020'!L39 -> 454381736 | J39: 2173059267 | K39: 434611853.4
B40: Nebraska | C40: 278976662 | E40: ='FY 2016'!L40 -> 293191186 | F40: ='FY 2017'!L40 -> 299245632 | G40: ='FY 2018'!L40 -> 305712735 | H40: ='FY 2019'!L40 -> 312612854 | I40: ='FY 2020'!L40 -> 320099792 | J40: 1530862199 | K40: 306172439.8
B41: Nevada | C41: 350472546 | E41: ='FY 2016'!L41 -> 368332024 | F41: ='FY 2017'!L41 -> 375938098 | G41: ='FY 2018'!L41 -> 384062585 | H41: ='FY 2019'!L41 -> 392731061 | I41: ='FY 2020'!L41 -> 402136745 | J41: 1923200513 | K41: 384640102.6
B42: New Hampshire | C42: 159469843 | E42: ='FY 2016'!L42 -> 167595715 | F42: ='FY 2017'!L42 -> 171056584 | G42: ='FY 2018'!L42 -> 174753337 | H42: ='FY 2019'!L42 -> 178697613 | I42: ='FY 2020'!L42 -> 182977330 | J42: 875080579 | K42: 175016115.8
B43: New Jersey | C43: 963682664 | E43: ='FY 2016'!L43 -> 1012792050 | F43: ='FY 2017'!L43 -> 1033706218 | G43: ='FY 2018'!L43 -> 1056045847 | H43: ='FY 2019'!L43 -> 1079881265 | I43: ='FY 2020'!L43 -> 1105743762 | J43: 5288169142 | K43: 1057633828
B44: New Mexico | C44: 354439590 | E44: ='FY 2016'!L44 -> 372498916 | F44: ='FY 2017'!L44 -> 380191084 | G44: ='FY 2018'!L44 -> 388407532 | H44: ='FY 2019'!L44 -> 397174128 | I44: ='FY 2020'!L44 -> 406686276 | J44: 1944957936 | K44: 388991587.2
B45: New York | C45: 1620088460 | E45: ='FY 2016'!L45 -> 1702649572 | F45: ='FY 2017'!L45 -> 1737809280 | G45: ='FY 2018'!L45 -> 1775365392 | H45: ='FY 2019'!L45 -> 1815436141 | I45: ='FY 2020'!L45 -> 1858914699 | J45: =SUM(E45:I45) -> 8890175084 | K45: =AVERAGE(E45:I45) -> 1778035017
B46: North Carolina | C46: 1006630450 | E46: ='FY 2016'!L46 -> 1057922052 | F46: ='FY 2017'!L46 -> 1079768287 | G46: ='FY 2018'!L46 -> 1103103510 | H46: ='FY 2019'!L46 -> 1128001186 | I46: ='FY 2020'!L46 -> 1155016278 | J46: 5523811313 | K46: 1104762263
B47: North Dakota | C47: 239621802 | E47: ='FY 2016'!L47 -> 251831294 | F47: ='FY 2017'!L47 -> 257031648 | G47: ='FY 2018'!L47 -> 262586445 | H47: ='FY 2019'!L47 -> 268513174 | I47: ='FY 2020'!L47 -> 274943940 | J47: 1314906501 | K47: 262981300.2
B48: Ohio | C48: 1293739008 | E48: ='FY 2016'!L48 -> 1359663237 | F48: ='FY 2017'!L48 -> 1387740399 | G48: ='FY 2018'!L48 -> 1417731235 | H48: ='FY 2019'!L48 -> 1449730162 | I48: ='FY 2020'!L48 -> 1484450429 | J48: 7099315462 | K48: 1419863092
B49: Oklahoma | C49: 612127810 | E49: ='FY 2016'!L49 -> 643315998 | F49: ='FY 2017'!L49 -> 656600603 | G49: ='FY 2018'!L49 -> 670790656 | H49: ='FY 2019'!L49 -> 685930829 | I49: ='FY 2020'!L49 -> 702358595 | J49: 3358996681 | K49: 671799336.2
B50: Oregon | C50: 482423497 | E50: ='FY 2016'!L50 -> 507004353 | F50: ='FY 2017'!L50 -> 517474070 | G50: ='FY 2018'!L50 -> 528657381 | H50: ='FY 2019'!L50 -> 540589488 | I50: ='FY 2020'!L50 -> 553536361 | J50: 2647261653 | K50: 529452330.6
B51: Pennsylvania | C51: 1583603275 | E51: ='FY 2016'!L51 -> 1664296550 | F51: ='FY 2017'!L51 -> 1698664445 | G51: ='FY 2018'!L51 -> 1735374776 | H51: ='FY 2019'!L51 -> 1774543112 | I51: ='FY 2020'!L51 -> 1817042511 | J51: 8689921394 | K51: 1737984279
B52: Rhode Island | C52: 211081927 | E52: ='FY 2016'!L52 -> 221837373 | F52: ='FY 2017'!L52 -> 226418345 | G52: ='FY 2018'!L52 -> 231311545 | H52: ='FY 2019'!L52 -> 236532377 | I52: ='FY 2020'!L52 -> 242197215 | J52: 1158296855 | K52: 231659371
B53: South Carolina | C53: 646306850 | E53: ='FY 2016'!L53 -> 679236584 | F53: ='FY 2017'!L53 -> 693262955 | G53: ='FY 2018'!L53 -> 708245330 | H53: ='FY 2019'!L53 -> 724230875 | I53: ='FY 2020'!L53 -> 741575911 | J53: 3546551655 | K53: 709310331
B54: South Dakota | C54: 272190802 | E54: ='FY 2016'!L54 -> 286059805 | F54: ='FY 2017'!L54 -> 291966983 | G54: ='FY 2018'!L54 -> 298276779 | H54: ='FY 2019'!L54 -> 305009059 | I54: ='FY 2020'!L54 -> 312313885 | J54: 1493626511 | K54: 298725302.2
B55: Tennessee | C55: 815605297 | E55: ='FY 2016'!L55 -> 857163013 | F55: ='FY 2017'!L55 -> 874863555 | G55: ='FY 2018'!L55 -> 893770525 | H55: ='FY 2019'!L55 -> 913943445 | I55: ='FY 2020'!L55 -> 935831968 | J55: 4475572506 | K55: 895114501.2
B56: Texas | C56: 3331596800 | E56: ='FY 2016'!L56 -> 3501354175 | F56: ='FY 2017'!L56 -> 3573657617 | G56: ='FY 2018'!L56 -> 3650889094 | H56: ='FY 2019'!L56 -> 3733291741 | I56: ='FY 2020'!L56 -> 3822702306 | J56: 18281894933 | K56: 3656378987
B57: Utah | C57: 335148600 | E57: ='FY 2016'!L57 -> 352225393 | F57: ='FY 2017'!L57 -> 359498902 | G57: ='FY 2018'!L57 -> 367268156 | H57: ='FY 2019'!L57 -> 375557614 | I57: ='FY 2020'!L57 -> 384552048 | J57: 1839102113 | K57: 367820422.6
B58: Vermont | C58: 195886832 | E58: ='FY 2016'!L58 -> 205868282 | F58: ='FY 2017'!L58 -> 210119484 | G58: ='FY 2018'!L58 -> 214660438 | H58: ='FY 2019'!L58 -> 219505440 | I58: ='FY 2020'!L58 -> 224762485 | J58: 1074916129 | K58: 214983225.8
B59: Virginia | C59: 982180040 | E59: ='FY 2016'!L59 -> 1032226472 | F59: ='FY 2017'!L59 -> 1053542076 | G59: ='FY 2018'!L59 -> 1076310501 | H59: ='FY 2019'!L59 -> 1100603428 | I59: ='FY 2020'!L59 -> 1126962342 | J59: 5389644819 | K59: 1077928964
B60: Washington | C60: 654304963 | E60: ='FY 2016'!L60 -> 687644962 | F60: ='FY 2017'!L60 -> 701844910 | G60: ='FY 2018'!L60 -> 717012693 | H60: ='FY 2019'!L60 -> 733196062 | I60: ='FY 2020'!L60 -> 750755744 | J60: 3590454371 | K60: 718090874.2
B61: West Virginia | C61: 421797542 | E61: ='FY 2016'!L61 -> 443288929 | F61: ='FY 2017'!L61 -> 452442922 | G61: ='FY 2018'!L61 -> 462220829 | H61: ='FY 2019'!L61 -> 472653435 | I61: ='FY 2020'!L61 -> 483973279 | J61: 2314579394 | K61: 462915878.8
B62: Wisconsin | C62: 726226908 | E62: ='FY 2016'!L62 -> 763229980 | F62: ='FY 2017'!L62 -> 778990803 | G62: ='FY 2018'!L62 -> 795825845 | H62: ='FY 2019'!L62 -> 813788109 | I62: ='FY 2020'!L62 -> 833277970 | J62: 3985112707 | K62: 797022541.4
B63: Wyoming | C63: 247262623 | E63: ='FY 2016'!L63 -> 259861381 | F63: ='FY 2017'!L63 -> 265227558 | G63: ='FY 2018'!L63 -> 270959481 | H63: ='FY 2019'!L63 -> 277075196 | I63: ='FY 2020'!L63 -> 283711020 | J63: 1356834636 | K63: 271366927.2
B65: Apportioned Total | C65: =SUM(C13:C63) -> 37798000000 | E65: =SUM(E13:E63) -> 39724000000 | F65: =SUM(F13:F63) -> 40544305000 | G65: 41420520075 | H65: 42355403696 | I65: 43369794311 | J65: =SUM(E65:I65) -> 207414023082 | K65: =AVERAGE(E65:I65) -> 4.148280462e+10
B67: * Reflects $3,500,000 takedown for safety-related programs for each fiscal year 2016 -2020.
B69: Disclaimer: This technical assistance is provided in response to a Congressional request and is not intended to reflect the viewpoint or policies of any element of the
B70: Department of Transportation or the Administration.

Sheet Summary
A1: FHWA, HCFB-11 | B1: U.S. DEPARTMENT OF TRANSPORTATION | M1: =Comparison!L1 -> 2015-12-01
A2: =Comparison!A2 -> TA | B2: FEDERAL HIGHWAY ADMINISTRATION
B5: SUMMARY OF ESTIMATED FY 2016 - FY 2020 APPORTIONMENTS UNDER THE CONFERENCE REPORT FOR H.R. 22 (FAST ACT)
C6: (before post-apportionment setasides; before penalties; before sequestration)
C8: National | D8: Surface | E8: Surface | F8: STBGP set-aside: | G8: Highway | H8: Railway-
C9: Highway | D9: Transportation | E9: Transportation | F9: Recreational | G9: Safety | H9: Highway | K9: National
C10: Performance | D10: Block Grant | E10: Block Grant | F10: Trails | G10: Improvement | H10: Crossings | I10: CMAQ | J10: Metropolitan | K10: Freight | L10: Apportioned
B11: State | C11: Program | D11: Program | E11: Set-aside | F11: Program | G11: Program 1 | H11: Program | I11: Program | J11: Planning | K11: Program | L11: Total
B13: Alabama | C13: ='FY 2016'!C13+'FY 2017'!C13+'FY 2018'!C13+'FY 2019'!C13+'FY 2020'!C13 -> 2376361706 | D13: ='FY 2016'!D13+'FY 2017'!D13+'FY 2018'!D13+'FY 2019'!D13+'FY 2020'!D13 -> 1097004461 | E13: ='FY 2016'!E13+'FY 2017'!E13+'FY 2018'!E13+'FY 2019'!E13+'FY 2020'!E13 -> 78896756 | F13: ='FY 2016'!F13+'FY 2017'!F13+'FY 2018'!F13+'FY 2019'!F13+'FY 2020'!F13 -> 8748935 | G13: ='FY 2016'!G13+'FY 2017'!G13+'FY 2018'!G13+'FY 2019'!G13+'FY 2020'!G13 -> 236195156 | H13: ='FY 2016'!H13+'FY 2017'!H13+'FY 2018'!H13+'FY 2019'!H13+'FY 2020'!H13 -> 24330066 | I13: ='FY 2016'!I13+'FY 2017'!I13+'FY 2018'!I13+'FY 2019'!I13+'FY 2020'!I13 -> 59168350 | J13: ='FY 2016'!J13+'FY 2017'!J13+'FY 2018'!J13+'FY 2019'!J13+'FY 2020'!J13 -> 15967692 | K13: ='FY 2016'!K13+'FY 2017'!K13+'FY 2018'!K13+'FY 2019'!K13+'FY 2020'!K13 -> 121553595 | L13: =SUM(C13:K13) -> 4018226717
B14: Alaska | C14: ='FY 2016'!C14+'FY 2017'!C14+'FY 2018'!C14+'FY 2019'!C14+'FY 2020'!C14 -> 1503781098 | D14: ='FY 2016'!D14+'FY 2017'!D14+'FY 2018'!D14+'FY 2019'!D14+'FY 2020'!D14 -> 718552415 | E14: ='FY 2016'!E14+'FY 2017'!E14+'FY 2018'!E14+'FY 2019'!E14+'FY 2020'!E14 -> 26037733 | F14: ='FY 2016'!F14+'FY 2017'!F14+'FY 2018'!F14+'FY 2019'!F14+'FY 2020'!F14 -> 7639610 | G14: ='FY 2016'!G14+'FY 2017'!G14+'FY 2018'!G14+'FY 2019'!G14+'FY 2020'!G14 -> 158980298 | H14: ='FY 2016'!H14+'FY 2017'!H14+'FY 2018'!H14+'FY 2019'!H14+'FY 2020'!H14 -> 5875000 | I14: ='FY 2016'!I14+'FY 2017'!I14+'FY 2018'!I14+'FY 2019'!I14+'FY 2020'!I14 -> 142730532 | J14: ='FY 2016'!J14+'FY 2017'!J14+'FY 2018'!J14+'FY 2019'!J14+'FY 2020'!J14 -> 11775386 | K14: ='FY 2016'!K14+'FY 2017'!K14+'FY 2018'!K14+'FY 2019'!K14+'FY 2020'!K14 -> 80297146 | L14: =SUM(C14:K14) -> 2655669218
B15: Arizona | C15: ='FY 2016'!C15+'FY 2017'!C15+'FY 2018'!C15+'FY 2019'!C15+'FY 2020'!C15 -> 2147423362 | D15: ='FY 2016'!D15+'FY 2017'!D15+'FY 2018'!D15+'FY 2019'!D15+'FY 2020'!D15 -> 988132635 | E15: ='FY 2016'!E15+'FY 2017'!E15+'FY 2018'!E15+'FY 2019'!E15+'FY 2020'!E15 -> 78276298 | F15: ='FY 2016'!F15+'FY 2017'!F15+'FY 2018'!F15+'FY 2019'!F15+'FY 2020'!F15 -> 9674315 | G15: ='FY 2016'!G15+'FY 2017'!G15+'FY 2018'!G15+'FY 2019'!G15+'FY 2020'!G15 -> 221178085 | H15: ='FY 2016'!H15+'FY 2017'!H15+'FY 2018'!H15+'FY 2019'!H15+'FY 2020'!H15 -> 14232640 | I15: ='FY 2016'!I15+'FY 2017'!I15+'FY 2018'!I15+'FY 2019'!I15+'FY 2020'!I15 -> 269067379 | J15: ='FY 2016'!J15+'FY 2017'!J15+'FY 2018'!J15+'FY 2019'!J15+'FY 2020'!J15 -> 30388778 | K15: ='FY 2016'!K15+'FY 2017'!K15+'FY 2018'!K15+'FY 2019'!K15+'FY 2020'!K15 -> 116757939 | L15: 3875131431
B16: Arkansas | C16: ='FY 2016'!C16+'FY 2017'!C16+'FY 2018'!C16+'FY 2019'!C16+'FY 2020'!C16 -> 1607942773 | D16: ='FY 2016'!D16+'FY 2017'!D16+'FY 2018'!D16+'FY 2019'!D16+'FY 2020'!D16 -> 745575898 | E16: ='FY 2016'!E16+'FY 2017'!E16+'FY 2018'!E16+'FY 2019'!E16+'FY 2020'!E16 -> 49066419 | F16: ='FY 2016'!F16+'FY 2017'!F16+'FY 2018'!F16+'FY 2019'!F16+'FY 2020'!F16 -> 7469845 | G16: ='FY 2016'!G16+'FY 2017'!G16+'FY 2018'!G16+'FY 2019'!G16+'FY 2020'!G16 -> 156208950 | H16: ='FY 2016'!H16+'FY 2017'!H16+'FY 2018'!H16+'FY 2019'!H16+'FY 2020'!H16 -> 20071508 | I16: ='FY 2016'!I16+'FY 2017'!I16+'FY 2018'!I16+'FY 2019'!I16+'FY 2020'!I16 -> 63867523 | J16: ='FY 2016'!J16+'FY 2017'!J16+'FY 2018'!J16+'FY 2019'!J16+'FY 2020'!J16 -> 8922553 | K16: ='FY 2016'!K16+'FY 2017'!K16+'FY 2018'!K16+'FY 2019'!K16+'FY 2020'!K16 -> 83012548 | L16: 2742138017
B17: California | C17: ='FY 2016'!C17+'FY 2017'!C17+'FY 2018'!C17+'FY 2019'!C17+'FY 2020'!C17 -> 10032529736 | D17: ='FY 2016'!D17+'FY 2017'!D17+'FY 2018'!D17+'FY 2019'!D17+'FY 2020'!D17 -> 4680460102 | E17: ='FY 2016'!E17+'FY 2017'!E17+'FY 2018'!E17+'FY 2019'!E17+'FY 2020'!E17 -> 348533054 | F17: ='FY 2016'!F17+'FY 2017'!F17+'FY 2018'!F17+'FY 2019'!F17+'FY 2020'!F17 -> 28780945 | G17: ='FY 2016'!G17+'FY 2017'!G17+'FY 2018'!G17+'FY 2019'!G17+'FY 2020'!G17 -> 1017592522 | H17: ='FY 2016'!H17+'FY 2017'!H17+'FY 2018'!H17+'FY 2019'!H17+'FY 2020'!H17 -> 82135958 | I17: ='FY 2016'!I17+'FY 2017'!I17+'FY 2018'!I17+'FY 2019'!I17+'FY 2020'!I17 -> 2406968478 | J17: ='FY 2016'!J17+'FY 2017'!J17+'FY 2018'!J17+'FY 2019'!J17+'FY 2020'!J17 -> 259831965 | K17: ='FY 2016'!K17+'FY 2017'!K17+'FY 2018'!K17+'FY 2019'!K17+'FY 2020'!K17 -> 582360087 | L17: 19439192847
B18: Colorado | C18: ='FY 2016'!C18+'FY 2017'!C18+'FY 2018'!C18+'FY 2019'!C18+'FY 2020'!C18 -> 1551723500 | D18: ='FY 2016'!D18+'FY 2017'!D18+'FY 2018'!D18+'FY 2019'!D18+'FY 2020'!D18 -> 717263564 | E18: ='FY 2016'!E18+'FY 2017'!E18+'FY 2018'!E18+'FY 2019'!E18+'FY 2020'!E18 -> 53082555 | F18: ='FY 2016'!F18+'FY 2017'!F18+'FY 2018'!F18+'FY 2019'!F18+'FY 2020'!F18 -> 7958260 | G18: ='FY 2016'!G18+'FY 2017'!G18+'FY 2018'!G18+'FY 2019'!G18+'FY 2020'!G18 -> 153203318 | H18: ='FY 2016'!H18+'FY 2017'!H18+'FY 2018'!H18+'FY 2019'!H18+'FY 2020'!H18 -> 16901928 | I18: ='FY 2016'!I18+'FY 2017'!I18+'FY 2018'!I18+'FY 2019'!I18+'FY 2020'!I18 -> 219373417 | J18: ='FY 2016'!J18+'FY 2017'!J18+'FY 2018'!J18+'FY 2019'!J18+'FY 2020'!J18 -> 27465980 | K18: ='FY 2016'!K18+'FY 2017'!K18+'FY 2018'!K18+'FY 2019'!K18+'FY 2020'!K18 -> 85169004 | L18: 2832141526
B19: Connecticut | C19: ='FY 2016'!C19+'FY 2017'!C19+'FY 2018'!C19+'FY 2019'!C19+'FY 2020'!C19 -> 1443708482 | D19: ='FY 2016'!D19+'FY 2017'!D19+'FY 2018'!D19+'FY 2019'!D19+'FY 2020'!D19 -> 679950379 | E19: ='FY 2016'!E19+'FY 2017'!E19+'FY 2018'!E19+'FY 2019'!E19+'FY 2020'!E19 -> 39938814 | F19: ='FY 2016'!F19+'FY 2017'!F19+'FY 2018'!F19+'FY 2019'!F19+'FY 2020'!F19 -> 4811080 | G19: ='FY 2016'!G19+'FY 2017'!G19+'FY 2018'!G19+'FY 2019'!G19+'FY 2020'!G19 -> 151404555 | H19: ='FY 2016'!H19+'FY 2017'!H19+'FY 2018'!H19+'FY 2019'!H19+'FY 2020'!H19 -> 6858117 | I19: ='FY 2016'!I19+'FY 2017'!I19+'FY 2018'!I19+'FY 2019'!I19+'FY 2020'!I19 -> 229462021 | J19: ='FY 2016'!J19+'FY 2017'!J19+'FY 2018'!J19+'FY 2019'!J19+'FY 2020'!J19 -> 23967260 | K19: ='FY 2016'!K19+'FY 2017'!K19+'FY 2018'!K19+'FY 2019'!K19+'FY 2020'!K19 -> 80053845 | L19: 2660154553
B20: Delaware | C20: ='FY 2016'!C20+'FY 2017'!C20+'FY 2018'!C20+'FY 2019'!C20+'FY 2020'!C20 -> 496202821 | D20: ='FY 2016'!D20+'FY 2017'!D20+'FY 2018'!D20+'FY 2019'!D20+'FY 2020'!D20 -> 229975469 | E20: ='FY 2016'!E20+'FY 2017'!E20+'FY 2018'!E20+'FY 2019'!E20+'FY 2020'!E20 -> 14156949 | F20: ='FY 2016'!F20+'FY 2017'!F20+'FY 2018'!F20+'FY 2019'!F20+'FY 2020'!F20 -> 4528400 | G20: ='FY 2016'!G20+'FY 2017'!G20+'FY 2018'!G20+'FY 2019'!G20+'FY 2020'!G20 -> 48521072 | H20: ='FY 2016'!H20+'FY 2017'!H20+'FY 2018'!H20+'FY 2019'!H20+'FY 2020'!H20 -> 5875000 | I20: ='FY 2016'!I20+'FY 2017'!I20+'FY 2018'!I20+'FY 2019'!I20+'FY 2020'!I20 -> 60484623 | J20: ='FY 2016'!J20+'FY 2017'!J20+'FY 2018'!J20+'FY 2019'!J20+'FY 2020'!J20 -> 9253879 | K20: ='FY 2016'!K20+'FY 2017'!K20+'FY 2018'!K20+'FY 2019'!K20+'FY 2020'!K20 -> 26924907 | L20: 895923120
B21: Dist. of Col. | C21: ='FY 2016'!C21+'FY 2017'!C21+'FY 2018'!C21+'FY 2019'!C21+'FY 2020'!C21 -> 470709734 | D21: ='FY 2016'!D21+'FY 2017'!D21+'FY 2018'!D21+'FY 2019'!D21+'FY 2020'!D21 -> 219454356 | E21: ='FY 2016'!E21+'FY 2017'!E21+'FY 2018'!E21+'FY 2019'!E21+'FY 2020'!E21 -> 12195967 | F21: ='FY 2016'!F21+'FY 2017'!F21+'FY 2018'!F21+'FY 2019'!F21+'FY 2020'!F21 -> 4125490 | G21: ='FY 2016'!G21+'FY 2017'!G21+'FY 2018'!G21+'FY 2019'!G21+'FY 2020'!G21 -> 45726707 | H21: ='FY 2016'!H21+'FY 2017'!H21+'FY 2018'!H21+'FY 2019'!H21+'FY 2020'!H21 -> 5875000 | I21: ='FY 2016'!I21+'FY 2017'!I21+'FY 2018'!I21+'FY 2019'!I21+'FY 2020'!I21 -> 52393838 | J21: ='FY 2016'!J21+'FY 2017'!J21+'FY 2018'!J21+'FY 2019'!J21+'FY 2020'!J21 -> 9217352 | K21: ='FY 2016'!K21+'FY 2017'!K21+'FY 2018'!K21+'FY 2019'!K21+'FY 2020'!K21 -> 25381753 | L21: 845080197
B22: Florida | C22: ='FY 2016'!C22+'FY 2017'!C22+'FY 2018'!C22+'FY 2019'!C22+'FY 2020'!C22 -> 5941963917 | D22: ='FY 2016'!D22+'FY 2017'!D22+'FY 2018'!D22+'FY 2019'!D22+'FY 2020'!D22 -> 2705025195 | E22: ='FY 2016'!E22+'FY 2017'!E22+'FY 2018'!E22+'FY 2019'!E22+'FY 2020'!E22 -> 243828684 | F22: ='FY 2016'!F22+'FY 2017'!F22+'FY 2018'!F22+'FY 2019'!F22+'FY 2020'!F22 -> 13012660 | G22: ='FY 2016'!G22+'FY 2017'!G22+'FY 2018'!G22+'FY 2019'!G22+'FY 2020'!G22 -> 606260363 | H22: ='FY 2016'!H22+'FY 2017'!H22+'FY 2018'!H22+'FY 2019'!H22+'FY 2020'!H22 -> 45169660 | I22: ='FY 2016'!I22+'FY 2017'!I22+'FY 2018'!I22+'FY 2019'!I22+'FY 2020'!I22 -> 70524881 | J22: ='FY 2016'!J22+'FY 2017'!J22+'FY 2018'!J22+'FY 2019'!J22+'FY 2020'!J22 -> 107524898 | K22: ='FY 2016'!K22+'FY 2017'!K22+'FY 2018'!K22+'FY 2019'!K22+'FY 2020'!K22 -> 301452866 | L22: 10034763124
B23: Georgia | C23: ='FY 2016'!C23+'FY 2017'!C23+'FY 2018'!C23+'FY 2019'!C23+'FY 2020'!C23 -> 3875854455 | D23: ='FY 2016'!D23+'FY 2017'!D23+'FY 2018'!D23+'FY 2019'!D23+'FY 2020'!D23 -> 1768517600 | E23: ='FY 2016'!E23+'FY 2017'!E23+'FY 2018'!E23+'FY 2019'!E23+'FY 2020'!E23 -> 161444393 | F23: ='FY 2016'!F23+'FY 2017'!F23+'FY 2018'!F23+'FY 2019'!F23+'FY 2020'!F23 -> 8700685 | G23: ='FY 2016'!G23+'FY 2017'!G23+'FY 2018'!G23+'FY 2019'!G23+'FY 2020'!G23 -> 382921031 | H23: ='FY 2016'!H23+'FY 2017'!H23+'FY 2018'!H23+'FY 2019'!H23+'FY 2020'!H23 -> 41978401 | I23: ='FY 2016'!I23+'FY 2017'!I23+'FY 2018'!I23+'FY 2019'!I23+'FY 2020'!I23 -> 352419474 | J23: ='FY 2016'!J23+'FY 2017'!J23+'FY 2018'!J23+'FY 2019'!J23+'FY 2020'!J23 -> 40348671 | K23: ='FY 2016'!K23+'FY 2017'!K23+'FY 2018'!K23+'FY 2019'!K23+'FY 2020'!K23 -> 206462334 | L23: 6838647044
B24: Hawaii | C24: ='FY 2016'!C24+'FY 2017'!C24+'FY 2018'!C24+'FY 2019'!C24+'FY 2020'!C24 -> 500535140 | D24: ='FY 2016'!D24+'FY 2017'!D24+'FY 2018'!D24+'FY 2019'!D24+'FY 2020'!D24 -> 231913045 | E24: ='FY 2016'!E24+'FY 2017'!E24+'FY 2018'!E24+'FY 2019'!E24+'FY 2020'!E24 -> 13935211 | F24: ='FY 2016'!F24+'FY 2017'!F24+'FY 2018'!F24+'FY 2019'!F24+'FY 2020'!F24 -> 4802320 | G24: ='FY 2016'!G24+'FY 2017'!G24+'FY 2018'!G24+'FY 2019'!G24+'FY 2020'!G24 -> 48996506 | H24: ='FY 2016'!H24+'FY 2017'!H24+'FY 2018'!H24+'FY 2019'!H24+'FY 2020'!H24 -> 5875000 | I24: ='FY 2016'!I24+'FY 2017'!I24+'FY 2018'!I24+'FY 2019'!I24+'FY 2020'!I24 -> 53726281 | J24: ='FY 2016'!J24+'FY 2017'!J24+'FY 2018'!J24+'FY 2019'!J24+'FY 2020'!J24 -> 9082235 | K24: ='FY 2016'!K24+'FY 2017'!K24+'FY 2018'!K24+'FY 2019'!K24+'FY 2020'!K24 -> 26926286 | L24: 895792024
B25: Idaho | C25: ='FY 2016'!C25+'FY 2017'!C25+'FY 2018'!C25+'FY 2019'!C25+'FY 2020'!C25 -> 866282379 | D25: ='FY 2016'!D25+'FY 2017'!D25+'FY 2018'!D25+'FY 2019'!D25+'FY 2020'!D25 -> 404714029 | E25: ='FY 2016'!E25+'FY 2017'!E25+'FY 2018'!E25+'FY 2019'!E25+'FY 2020'!E25 -> 19728220 | F25: ='FY 2016'!F25+'FY 2017'!F25+'FY 2018'!F25+'FY 2019'!F25+'FY 2020'!F25 -> 8552800 | G25: ='FY 2016'!G25+'FY 2017'!G25+'FY 2018'!G25+'FY 2019'!G25+'FY 2020'!G25 -> 85528204 | H25: ='FY 2016'!H25+'FY 2017'!H25+'FY 2018'!H25+'FY 2019'!H25+'FY 2020'!H25 -> 9440855 | I25: ='FY 2016'!I25+'FY 2017'!I25+'FY 2018'!I25+'FY 2019'!I25+'FY 2020'!I25 -> 66459820 | J25: ='FY 2016'!J25+'FY 2017'!J25+'FY 2018'!J25+'FY 2019'!J25+'FY 2020'!J25 -> 8408240 | K25: ='FY 2016'!K25+'FY 2017'!K25+'FY 2018'!K25+'FY 2019'!K25+'FY 2020'!K25 -> 45751097 | L25: 1514865644
B26: Illinois | C26: ='FY 2016'!C26+'FY 2017'!C26+'FY 2018'!C26+'FY 2019'!C26+'FY 2020'!C26 -> 4123876556 | D26: ='FY 2016'!D26+'FY 2017'!D26+'FY 2018'!D26+'FY 2019'!D26+'FY 2020'!D26 -> 1920627025 | E26: ='FY 2016'!E26+'FY 2017'!E26+'FY 2018'!E26+'FY 2019'!E26+'FY 2020'!E26 -> 140251892 | F26: ='FY 2016'!F26+'FY 2017'!F26+'FY 2018'!F26+'FY 2019'!F26+'FY 2020'!F26 -> 7626485 | G26: ='FY 2016'!G26+'FY 2017'!G26+'FY 2018'!G26+'FY 2019'!G26+'FY 2020'!G26 -> 397169878 | H26: ='FY 2016'!H26+'FY 2017'!H26+'FY 2018'!H26+'FY 2019'!H26+'FY 2020'!H26 -> 54903394 | I26: ='FY 2016'!I26+'FY 2017'!I26+'FY 2018'!I26+'FY 2019'!I26+'FY 2020'!I26 -> 571015544 | J26: ='FY 2016'!J26+'FY 2017'!J26+'FY 2018'!J26+'FY 2019'!J26+'FY 2020'!J26 -> 88612583 | K26: ='FY 2016'!K26+'FY 2017'!K26+'FY 2018'!K26+'FY 2019'!K26+'FY 2020'!K26 -> 225960873 | L26: 7530044230
B27: Indiana | C27: ='FY 2016'!C27+'FY 2017'!C27+'FY 2018'!C27+'FY 2019'!C27+'FY 2020'!C27 -> 2871811259 | D27: ='FY 2016'!D27+'FY 2017'!D27+'FY 2018'!D27+'FY 2019'!D27+'FY 2020'!D27 -> 1320397663 | E27: ='FY 2016'!E27+'FY 2017'!E27+'FY 2018'!E27+'FY 2019'!E27+'FY 2020'!E27 -> 109577683 | F27: ='FY 2016'!F27+'FY 2017'!F27+'FY 2018'!F27+'FY 2019'!F27+'FY 2020'!F27 -> 6008545 | G27: ='FY 2016'!G27+'FY 2017'!G27+'FY 2018'!G27+'FY 2019'!G27+'FY 2020'!G27 -> 275857166 | H27: ='FY 2016'!H27+'FY 2017'!H27+'FY 2018'!H27+'FY 2019'!H27+'FY 2020'!H27 -> 38973030 | I27: ='FY 2016'!I27+'FY 2017'!I27+'FY 2018'!I27+'FY 2019'!I27+'FY 2020'!I27 -> 244368633 | J27: ='FY 2016'!J27+'FY 2017'!J27+'FY 2018'!J27+'FY 2019'!J27+'FY 2020'!J27 -> 27181674 | K27: ='FY 2016'!K27+'FY 2017'!K27+'FY 2018'!K27+'FY 2019'!K27+'FY 2020'!K27 -> 152440729 | L27: 5046616382
B28: Iowa | C28: ='FY 2016'!C28+'FY 2017'!C28+'FY 2018'!C28+'FY 2019'!C28+'FY 2020'!C28 -> 1526483408 | D28: ='FY 2016'!D28+'FY 2017'!D28+'FY 2018'!D28+'FY 2019'!D28+'FY 2020'!D28 -> 708028829 | E28: ='FY 2016'!E28+'FY 2017'!E28+'FY 2018'!E28+'FY 2019'!E28+'FY 2020'!E28 -> 46567136 | F28: ='FY 2016'!F28+'FY 2017'!F28+'FY 2018'!F28+'FY 2019'!F28+'FY 2020'!F28 -> 6874085 | G28: ='FY 2016'!G28+'FY 2017'!G28+'FY 2018'!G28+'FY 2019'!G28+'FY 2020'!G28 -> 139482074 | H28: ='FY 2016'!H28+'FY 2017'!H28+'FY 2018'!H28+'FY 2019'!H28+'FY 2020'!H28 -> 27867925 | I28: ='FY 2016'!I28+'FY 2017'!I28+'FY 2018'!I28+'FY 2019'!I28+'FY 2020'!I28 -> 58583584 | J28: ='FY 2016'!J28+'FY 2017'!J28+'FY 2018'!J28+'FY 2019'!J28+'FY 2020'!J28 -> 10300997 | K28: ='FY 2016'!K28+'FY 2017'!K28+'FY 2018'!K28+'FY 2019'!K28+'FY 2020'!K28 -> 78741326 | L28: 2602929364
B29: Kansas | C29: ='FY 2016'!C29+'FY 2017'!C29+'FY 2018'!C29+'FY 2019'!C29+'FY 2020'!C29 -> 1169655487 | D29: ='FY 2016'!D29+'FY 2017'!D29+'FY 2018'!D29+'FY 2019'!D29+'FY 2020'!D29 -> 529893154 | E29: ='FY 2016'!E29+'FY 2017'!E29+'FY 2018'!E29+'FY 2019'!E29+'FY 2020'!E29 -> 46815208 | F29: ='FY 2016'!F29+'FY 2017'!F29+'FY 2018'!F29+'FY 2019'!F29+'FY 2020'!F29 -> 6921250 | G29: ='FY 2016'!G29+'FY 2017'!G29+'FY 2018'!G29+'FY 2019'!G29+'FY 2020'!G29 -> 96395244 | H29: ='FY 2016'!H29+'FY 2017'!H29+'FY 2018'!H29+'FY 2019'!H29+'FY 2020'!H29 -> 31834886 | I29: ='FY 2016'!I29+'FY 2017'!I29+'FY 2018'!I29+'FY 2019'!I29+'FY 2020'!I29 -> 49356983 | J29: ='FY 2016'!J29+'FY 2017'!J29+'FY 2018'!J29+'FY 2019'!J29+'FY 2020'!J29 -> 10115488 | K29: ='FY 2016'!K29+'FY 2017'!K29+'FY 2018'!K29+'FY 2019'!K29+'FY 2020'!K29 -> 60478139 | L29: 2001465839
B30: Kentucky | C30: ='FY 2016'!C30+'FY 2017'!C30+'FY 2018'!C30+'FY 2019'!C30+'FY 2020'!C30 -> 2069399597 | D30: ='FY 2016'!D30+'FY 2017'!D30+'FY 2018'!D30+'FY 2019'!D30+'FY 2020'!D30 -> 964860478 | E30: ='FY 2016'!E30+'FY 2017'!E30+'FY 2018'!E30+'FY 2019'!E30+'FY 2020'!E30 -> 60095307 | F30: ='FY 2016'!F30+'FY 2017'!F30+'FY 2018'!F30+'FY 2019'!F30+'FY 2020'!F30 -> 7121975 | G30: ='FY 2016'!G30+'FY 2017'!G30+'FY 2018'!G30+'FY 2019'!G30+'FY 2020'!G30 -> 207763160 | H30: ='FY 2016'!H30+'FY 2017'!H30+'FY 2018'!H30+'FY 2019'!H30+'FY 2020'!H30 -> 19107932 | I30: ='FY 2016'!I30+'FY 2017'!I30+'FY 2018'!I30+'FY 2019'!I30+'FY 2020'!I30 -> 71052946 | J30: ='FY 2016'!J30+'FY 2017'!J30+'FY 2018'!J30+'FY 2019'!J30+'FY 2020'!J30 -> 13155793 | K30: ='FY 2016'!K30+'FY 2017'!K30+'FY 2018'!K30+'FY 2019'!K30+'FY 2020'!K30 -> 106478496 | L30: 3519035684
B31: Louisiana | C31: ='FY 2016'!C31+'FY 2017'!C31+'FY 2018'!C31+'FY 2019'!C31+'FY 2020'!C31 -> 2190747622 | D31: ='FY 2016'!D31+'FY 2017'!D31+'FY 2018'!D31+'FY 2019'!D31+'FY 2020'!D31 -> 1031006011 | E31: ='FY 2016'!E31+'FY 2017'!E31+'FY 2018'!E31+'FY 2019'!E31+'FY 2020'!E31 -> 53818117 | F31: ='FY 2016'!F31+'FY 2017'!F31+'FY 2018'!F31+'FY 2019'!F31+'FY 2020'!F31 -> 7588215 | G31: ='FY 2016'!G31+'FY 2017'!G31+'FY 2018'!G31+'FY 2019'!G31+'FY 2020'!G31 -> 218848636 | H31: ='FY 2016'!H31+'FY 2017'!H31+'FY 2018'!H31+'FY 2019'!H31+'FY 2020'!H31 -> 21326525 | I31: ='FY 2016'!I31+'FY 2017'!I31+'FY 2018'!I31+'FY 2019'!I31+'FY 2020'!I31 -> 59367620 | J31: ='FY 2016'!J31+'FY 2017'!J31+'FY 2018'!J31+'FY 2019'!J31+'FY 2020'!J31 -> 22326957 | K31: ='FY 2016'!K31+'FY 2017'!K31+'FY 2018'!K31+'FY 2019'!K31+'FY 2020'!K31 -> 112213621 | L31: 3717243324
B32: Maine | C32: ='FY 2016'!C32+'FY 2017'!C32+'FY 2018'!C32+'FY 2019'!C32+'FY 2020'!C32 -> 549831819 | D32: ='FY 2016'!D32+'FY 2017'!D32+'FY 2018'!D32+'FY 2019'!D32+'FY 2020'!D32 -> 257810653 | E32: ='FY 2016'!E32+'FY 2017'!E32+'FY 2018'!E32+'FY 2019'!E32+'FY 2020'!E32 -> 10167646 | F32: ='FY 2016'!F32+'FY 2017'!F32+'FY 2018'!F32+'FY 2019'!F32+'FY 2020'!F32 -> 7213705 | G32: ='FY 2016'!G32+'FY 2017'!G32+'FY 2018'!G32+'FY 2019'!G32+'FY 2020'!G32 -> 53693191 | H32: ='FY 2016'!H32+'FY 2017'!H32+'FY 2018'!H32+'FY 2019'!H32+'FY 2020'!H32 -> 6582903 | I32: ='FY 2016'!I32+'FY 2017'!I32+'FY 2018'!I32+'FY 2019'!I32+'FY 2020'!I32 -> 53406737 | J32: ='FY 2016'!J32+'FY 2017'!J32+'FY 2018'!J32+'FY 2019'!J32+'FY 2020'!J32 -> 9566644 | K32: ='FY 2016'!K32+'FY 2017'!K32+'FY 2018'!K32+'FY 2019'!K32+'FY 2020'!K32 -> 29398243 | L32: 977671541
B33: Maryland | C33: ='FY 2016'!C33+'FY 2017'!C33+'FY 2018'!C33+'FY 2019'!C33+'FY 2020'!C33 -> 1720287778 | D33: ='FY 2016'!D33+'FY 2017'!D33+'FY 2018'!D33+'FY 2019'!D33+'FY 2020'!D33 -> 801532358 | E33: ='FY 2016'!E33+'FY 2017'!E33+'FY 2018'!E33+'FY 2019'!E33+'FY 2020'!E33 -> 56680701 | F33: ='FY 2016'!F33+'FY 2017'!F33+'FY 2018'!F33+'FY 2019'!F33+'FY 2020'!F33 -> 5618100 | G33: ='FY 2016'!G33+'FY 2017'!G33+'FY 2018'!G33+'FY 2019'!G33+'FY 2020'!G33 -> 176329080 | H33: ='FY 2016'!H33+'FY 2017'!H33+'FY 2018'!H33+'FY 2019'!H33+'FY 2020'!H33 -> 12252028 | I33: ='FY 2016'!I33+'FY 2017'!I33+'FY 2018'!I33+'FY 2019'!I33+'FY 2020'!I33 -> 278496367 | J33: ='FY 2016'!J33+'FY 2017'!J33+'FY 2018'!J33+'FY 2019'!J33+'FY 2020'!J33 -> 36012403 | K33: ='FY 2016'!K33+'FY 2017'!K33+'FY 2018'!K33+'FY 2019'!K33+'FY 2020'!K33 -> 95552765 | L33: 3182761580
B34: Massachusetts | C34: ='FY 2016'!C34+'FY 2017'!C34+'FY 2018'!C34+'FY 2019'!C34+'FY 2020'!C34 -> 1702044620 | D34: ='FY 2016'!D34+'FY 2017'!D34+'FY 2018'!D34+'FY 2019'!D34+'FY 2020'!D34 -> 795871003 | E34: ='FY 2016'!E34+'FY 2017'!E34+'FY 2018'!E34+'FY 2019'!E34+'FY 2020'!E34 -> 54408841 | F34: ='FY 2016'!F34+'FY 2017'!F34+'FY 2018'!F34+'FY 2019'!F34+'FY 2020'!F34 -> 5933645 | G34: ='FY 2016'!G34+'FY 2017'!G34+'FY 2018'!G34+'FY 2019'!G34+'FY 2020'!G34 -> 173661471 | H34: ='FY 2016'!H34+'FY 2017'!H34+'FY 2018'!H34+'FY 2019'!H34+'FY 2020'!H34 -> 12915481 | I34: ='FY 2016'!I34+'FY 2017'!I34+'FY 2018'!I34+'FY 2019'!I34+'FY 2020'!I34 -> 328935103 | J34: ='FY 2016'!J34+'FY 2017'!J34+'FY 2018'!J34+'FY 2019'!J34+'FY 2020'!J34 -> 46682210 | K34: ='FY 2016'!K34+'FY 2017'!K34+'FY 2018'!K34+'FY 2019'!K34+'FY 2020'!K34 -> 96251660 | L34: 3216704034
B35: Michigan | C35: ='FY 2016'!C35+'FY 2017'!C35+'FY 2018'!C35+'FY 2019'!C35+'FY 2020'!C35 -> 3086113481 | D35: ='FY 2016'!D35+'FY 2017'!D35+'FY 2018'!D35+'FY 2019'!D35+'FY 2020'!D35 -> 1410826586 | E35: ='FY 2016'!E35+'FY 2017'!E35+'FY 2018'!E35+'FY 2019'!E35+'FY 2020'!E35 -> 121535796 | F35: ='FY 2016'!F35+'FY 2017'!F35+'FY 2018'!F35+'FY 2019'!F35+'FY 2020'!F35 -> 14269775 | G35: ='FY 2016'!G35+'FY 2017'!G35+'FY 2018'!G35+'FY 2019'!G35+'FY 2020'!G35 -> 298166762 | H35: ='FY 2016'!H35+'FY 2017'!H35+'FY 2018'!H35+'FY 2019'!H35+'FY 2020'!H35 -> 40147155 | I35: ='FY 2016'!I35+'FY 2017'!I35+'FY 2018'!I35+'FY 2019'!I35+'FY 2020'!I35 -> 383836647 | J35: ='FY 2016'!J35+'FY 2017'!J35+'FY 2018'!J35+'FY 2019'!J35+'FY 2020'!J35 -> 53778384 | K35: ='FY 2016'!K35+'FY 2017'!K35+'FY 2018'!K35+'FY 2019'!K35+'FY 2020'!K35 -> 167704024 | L35: 5576378610
B36: Minnesota | C36: ='FY 2016'!C36+'FY 2017'!C36+'FY 2018'!C36+'FY 2019'!C36+'FY 2020'!C36 -> 1962199235 | D36: ='FY 2016'!D36+'FY 2017'!D36+'FY 2018'!D36+'FY 2019'!D36+'FY 2020'!D36 -> 895343991 | E36: ='FY 2016'!E36+'FY 2017'!E36+'FY 2018'!E36+'FY 2019'!E36+'FY 2020'!E36 -> 73853714 | F36: ='FY 2016'!F36+'FY 2017'!F36+'FY 2018'!F36+'FY 2019'!F36+'FY 2020'!F36 -> 12080240 | G36: ='FY 2016'!G36+'FY 2017'!G36+'FY 2018'!G36+'FY 2019'!G36+'FY 2020'!G36 -> 183424213 | H36: ='FY 2016'!H36+'FY 2017'!H36+'FY 2018'!H36+'FY 2019'!H36+'FY 2020'!H36 -> 31686920 | I36: ='FY 2016'!I36+'FY 2017'!I36+'FY 2018'!I36+'FY 2019'!I36+'FY 2020'!I36 -> 167142445 | J36: ='FY 2016'!J36+'FY 2017'!J36+'FY 2018'!J36+'FY 2019'!J36+'FY 2020'!J36 -> 23745210 | K36: ='FY 2016'!K36+'FY 2017'!K36+'FY 2018'!K36+'FY 2019'!K36+'FY 2020'!K36 -> 104162389 | L36: 3453638357
B37: Mississippi | C37: ='FY 2016'!C37+'FY 2017'!C37+'FY 2018'!C37+'FY 2019'!C37+'FY 2020'!C37 -> 1502678157 | D37: ='FY 2016'!D37+'FY 2017'!D37+'FY 2018'!D37+'FY 2019'!D37+'FY 2020'!D37 -> 694934335 | E37: ='FY 2016'!E37+'FY 2017'!E37+'FY 2018'!E37+'FY 2019'!E37+'FY 2020'!E37 -> 47833049 | F37: ='FY 2016'!F37+'FY 2017'!F37+'FY 2018'!F37+'FY 2019'!F37+'FY 2020'!F37 -> 6809620 | G37: ='FY 2016'!G37+'FY 2017'!G37+'FY 2018'!G37+'FY 2019'!G37+'FY 2020'!G37 -> 146668877 | H37: ='FY 2016'!H37+'FY 2017'!H37+'FY 2018'!H37+'FY 2019'!H37+'FY 2020'!H37 -> 18071378 | I37: ='FY 2016'!I37+'FY 2017'!I37+'FY 2018'!I37+'FY 2019'!I37+'FY 2020'!I37 -> 58188668 | J37: ='FY 2016'!J37+'FY 2017'!J37+'FY 2018'!J37+'FY 2019'!J37+'FY 2020'!J37 -> 8831084 | K37: ='FY 2016'!K37+'FY 2017'!K37+'FY 2018'!K37+'FY 2019'!K37+'FY 2020'!K37 -> 77530046 | L37: 2561545214
B38: Missouri | C38: ='FY 2016'!C38+'FY 2017'!C38+'FY 2018'!C38+'FY 2019'!C38+'FY 2020'!C38 -> 2930021224 | D38: ='FY 2016'!D38+'FY 2017'!D38+'FY 2018'!D38+'FY 2019'!D38+'FY 2020'!D38 -> 1361232668 | E38: ='FY 2016'!E38+'FY 2017'!E38+'FY 2018'!E38+'FY 2019'!E38+'FY 2020'!E38 -> 92464802 | F38: ='FY 2016'!F38+'FY 2017'!F38+'FY 2018'!F38+'FY 2019'!F38+'FY 2020'!F38 -> 8316995 | G38: ='FY 2016'!G38+'FY 2017'!G38+'FY 2018'!G38+'FY 2019'!G38+'FY 2020'!G38 -> 291937491 | H38: ='FY 2016'!H38+'FY 2017'!H38+'FY 2018'!H38+'FY 2019'!H38+'FY 2020'!H38 -> 29282725 | I38: ='FY 2016'!I38+'FY 2017'!I38+'FY 2018'!I38+'FY 2019'!I38+'FY 2020'!I38 -> 122254691 | J38: ='FY 2016'!J38+'FY 2017'!J38+'FY 2018'!J38+'FY 2019'!J38+'FY 2020'!J38 -> 26993513 | K38: ='FY 2016'!K38+'FY 2017'!K38+'FY 2018'!K38+'FY 2019'!K38+'FY 2020'!K38 -> 151454999 | L38: 5013959108
B39: Montana | C39: ='FY 2016'!C39+'FY 2017'!C39+'FY 2018'!C39+'FY 2019'!C39+'FY 2020'!C39 -> 1255899859 | D39: ='FY 2016'!D39+'FY 2017'!D39+'FY 2018'!D39+'FY 2019'!D39+'FY 2020'!D39 -> 596885189 | E39: ='FY 2016'!E39+'FY 2017'!E39+'FY 2018'!E39+'FY 2019'!E39+'FY 2020'!E39 -> 22292144 | F39: ='FY 2016'!F39+'FY 2017'!F39+'FY 2018'!F39+'FY 2019'!F39+'FY 2020'!F39 -> 8033525 | G39: ='FY 2016'!G39+'FY 2017'!G39+'FY 2018'!G39+'FY 2019'!G39+'FY 2020'!G39 -> 127751982 | H39: ='FY 2016'!H39+'FY 2017'!H39+'FY 2018'!H39+'FY 2019'!H39+'FY 2020'!H39 -> 9931647 | I39: ='FY 2016'!I39+'FY 2017'!I39+'FY 2018'!I39+'FY 2019'!I39+'FY 2020'!I39 -> 77214136 | J39: ='FY 2016'!J39+'FY 2017'!J39+'FY 2018'!J39+'FY 2019'!J39+'FY 2020'!J39 -> 9336478 | K39: ='FY 2016'!K39+'FY 2017'!K39+'FY 2018'!K39+'FY 2019'!K39+'FY 2020'!K39 -> 65714307 | L39: 2173059267
B40: Nebraska | C40: ='FY 2016'!C40+'FY 2017'!C40+'FY 2018'!C40+'FY 2019'!C40+'FY 2020'!C40 -> 884154786 | D40: ='FY 2016'!D40+'FY 2017'!D40+'FY 2018'!D40+'FY 2019'!D40+'FY 2020'!D40 -> 406738554 | E40: ='FY 2016'!E40+'FY 2017'!E40+'FY 2018'!E40+'FY 2019'!E40+'FY 2020'!E40 -> 28754988 | F40: ='FY 2016'!F40+'FY 2017'!F40+'FY 2018'!F40+'FY 2019'!F40+'FY 2020'!F40 -> 6086935 | G40: ='FY 2016'!G40+'FY 2017'!G40+'FY 2018'!G40+'FY 2019'!G40+'FY 2020'!G40 -> 77788335 | H40: ='FY 2016'!H40+'FY 2017'!H40+'FY 2018'!H40+'FY 2019'!H40+'FY 2020'!H40 -> 19141020 | I40: ='FY 2016'!I40+'FY 2017'!I40+'FY 2018'!I40+'FY 2019'!I40+'FY 2020'!I40 -> 53359463 | J40: ='FY 2016'!J40+'FY 2017'!J40+'FY 2018'!J40+'FY 2019'!J40+'FY 2020'!J40 -> 8607293 | K40: ='FY 2016'!K40+'FY 2017'!K40+'FY 2018'!K40+'FY 2019'!K40+'FY 2020'!K40 -> 46230825 | L40: 1530862199
B41: Nevada | C41: ='FY 2016'!C41+'FY 2017'!C41+'FY 2018'!C41+'FY 2019'!C41+'FY 2020'!C41 -> 1041993321 | D41: ='FY 2016'!D41+'FY 2017'!D41+'FY 2018'!D41+'FY 2019'!D41+'FY 2020'!D41 -> 490970097 | E41: ='FY 2016'!E41+'FY 2017'!E41+'FY 2018'!E41+'FY 2019'!E41+'FY 2020'!E41 -> 25364784 | F41: ='FY 2016'!F41+'FY 2017'!F41+'FY 2018'!F41+'FY 2019'!F41+'FY 2020'!F41 -> 6789750 | G41: ='FY 2016'!G41+'FY 2017'!G41+'FY 2018'!G41+'FY 2019'!G41+'FY 2020'!G41 -> 108350519 | H41: ='FY 2016'!H41+'FY 2017'!H41+'FY 2018'!H41+'FY 2019'!H41+'FY 2020'!H41 -> 5875000 | I41: ='FY 2016'!I41+'FY 2017'!I41+'FY 2018'!I41+'FY 2019'!I41+'FY 2020'!I41 -> 168924348 | J41: ='FY 2016'!J41+'FY 2017'!J41+'FY 2018'!J41+'FY 2019'!J41+'FY 2020'!J41 -> 17047817 | K41: ='FY 2016'!K41+'FY 2017'!K41+'FY 2018'!K41+'FY 2019'!K41+'FY 2020'!K41 -> 57884877 | L41: 1923200513
B42: New Hampshire | C42: ='FY 2016'!C42+'FY 2017'!C42+'FY 2018'!C42+'FY 2019'!C42+'FY 2020'!C42 -> 488611388 | D42: ='FY 2016'!D42+'FY 2017'!D42+'FY 2018'!D42+'FY 2019'!D42+'FY 2020'!D42 -> 225027009 | E42: ='FY 2016'!E42+'FY 2017'!E42+'FY 2018'!E42+'FY 2019'!E42+'FY 2020'!E42 -> 13327163 | F42: ='FY 2016'!F42+'FY 2017'!F42+'FY 2018'!F42+'FY 2019'!F42+'FY 2020'!F42 -> 6339720 | G42: ='FY 2016'!G42+'FY 2017'!G42+'FY 2018'!G42+'FY 2019'!G42+'FY 2020'!G42 -> 47689319 | H42: ='FY 2016'!H42+'FY 2017'!H42+'FY 2018'!H42+'FY 2019'!H42+'FY 2020'!H42 -> 5875000 | I42: ='FY 2016'!I42+'FY 2017'!I42+'FY 2018'!I42+'FY 2019'!I42+'FY 2020'!I42 -> 53676922 | J42: ='FY 2016'!J42+'FY 2017'!J42+'FY 2018'!J42+'FY 2019'!J42+'FY 2020'!J42 -> 8209724 | K42: ='FY 2016'!K42+'FY 2017'!K42+'FY 2018'!K42+'FY 2019'!K42+'FY 2020'!K42 -> 26324334 | L42: 875080579
B43: New Jersey | C43: ='FY 2016'!C43+'FY 2017'!C43+'FY 2018'!C43+'FY 2019'!C43+'FY 2020'!C43 -> 2806132562 | D43: ='FY 2016'!D43+'FY 2017'!D43+'FY 2018'!D43+'FY 2019'!D43+'FY 2020'!D43 -> 1319668095 | E43: ='FY 2016'!E43+'FY 2017'!E43+'FY 2018'!E43+'FY 2019'!E43+'FY 2020'!E43 -> 85477526 | F43: ='FY 2016'!F43+'FY 2017'!F43+'FY 2018'!F43+'FY 2019'!F43+'FY 2020'!F43 -> 6133785 | G43: ='FY 2016'!G43+'FY 2017'!G43+'FY 2018'!G43+'FY 2019'!G43+'FY 2020'!G43 -> 288160588 | H43: ='FY 2016'!H43+'FY 2017'!H43+'FY 2018'!H43+'FY 2019'!H43+'FY 2020'!H43 -> 19446681 | I43: ='FY 2016'!I43+'FY 2017'!I43+'FY 2018'!I43+'FY 2019'!I43+'FY 2020'!I43 -> 539887810 | J43: ='FY 2016'!J43+'FY 2017'!J43+'FY 2018'!J43+'FY 2019'!J43+'FY 2020'!J43 -> 64650906 | K43: ='FY 2016'!K43+'FY 2017'!K43+'FY 2018'!K43+'FY 2019'!K43+'FY 2020'!K43 -> 158611189 | L43: 5288169142
B44: New Mexico | C44: ='FY 2016'!C44+'FY 2017'!C44+'FY 2018'!C44+'FY 2019'!C44+'FY 2020'!C44 -> 1130385201 | D44: ='FY 2016'!D44+'FY 2017'!D44+'FY 2018'!D44+'FY 2019'!D44+'FY 2020'!D44 -> 526604737 | E44: ='FY 2016'!E44+'FY 2017'!E44+'FY 2018'!E44+'FY 2019'!E44+'FY 2020'!E44 -> 30524463 | F44: ='FY 2016'!F44+'FY 2017'!F44+'FY 2018'!F44+'FY 2019'!F44+'FY 2020'!F44 -> 7149155 | G44: ='FY 2016'!G44+'FY 2017'!G44+'FY 2018'!G44+'FY 2019'!G44+'FY 2020'!G44 -> 115497479 | H44: ='FY 2016'!H44+'FY 2017'!H44+'FY 2018'!H44+'FY 2019'!H44+'FY 2020'!H44 -> 8426741 | I44: ='FY 2016'!I44+'FY 2017'!I44+'FY 2018'!I44+'FY 2019'!I44+'FY 2020'!I44 -> 59194902 | J44: ='FY 2016'!J44+'FY 2017'!J44+'FY 2018'!J44+'FY 2019'!J44+'FY 2020'!J44 -> 8358885 | K44: ='FY 2016'!K44+'FY 2017'!K44+'FY 2018'!K44+'FY 2019'!K44+'FY 2020'!K44 -> 58816373 | L44: 1944957936
B45: New York | C45: ='FY 2016'!C45+'FY 2017'!C45+'FY 2018'!C45+'FY 2019'!C45+'FY 2020'!C45 -> 4677462506 | D45: ='FY 2016'!D45+'FY 2017'!D45+'FY 2018'!D45+'FY 2019'!D45+'FY 2020'!D45 -> 2207697185 | E45: ='FY 2016'!E45+'FY 2017'!E45+'FY 2018'!E45+'FY 2019'!E45+'FY 2020'!E45 -> 135421899 | F45: ='FY 2016'!F45+'FY 2017'!F45+'FY 2018'!F45+'FY 2019'!F45+'FY 2020'!F45 -> 11022780 | G45: ='FY 2016'!G45+'FY 2017'!G45+'FY 2018'!G45+'FY 2019'!G45+'FY 2020'!G45 -> 480086376 | H45: ='FY 2016'!H45+'FY 2017'!H45+'FY 2018'!H45+'FY 2019'!H45+'FY 2020'!H45 -> 32650619 | I45: ='FY 2016'!I45+'FY 2017'!I45+'FY 2018'!I45+'FY 2019'!I45+'FY 2020'!I45 -> 950148294 | J45: ='FY 2016'!J45+'FY 2017'!J45+'FY 2018'!J45+'FY 2019'!J45+'FY 2020'!J45 -> 129690662 | K45: ='FY 2016'!K45+'FY 2017'!K45+'FY 2018'!K45+'FY 2019'!K45+'FY 2020'!K45 -> 265994763 | L45: 8890175084
B46: North Carolina | C46: ='FY 2016'!C46+'FY 2017'!C46+'FY 2018'!C46+'FY 2019'!C46+'FY 2020'!C46 -> 3144133283 | D46: ='FY 2016'!D46+'FY 2017'!D46+'FY 2018'!D46+'FY 2019'!D46+'FY 2020'!D46 -> 1452032821 | E46: ='FY 2016'!E46+'FY 2017'!E46+'FY 2018'!E46+'FY 2019'!E46+'FY 2020'!E46 -> 112020820 | F46: ='FY 2016'!F46+'FY 2017'!F46+'FY 2018'!F46+'FY 2019'!F46+'FY 2020'!F46 -> 8067800 | G46: ='FY 2016'!G46+'FY 2017'!G46+'FY 2018'!G46+'FY 2019'!G46+'FY 2020'!G46 -> 310584885 | H46: ='FY 2016'!H46+'FY 2017'!H46+'FY 2018'!H46+'FY 2019'!H46+'FY 2020'!H46 -> 34099450 | I46: ='FY 2016'!I46+'FY 2017'!I46+'FY 2018'!I46+'FY 2019'!I46+'FY 2020'!I46 -> 265823391 | J46: ='FY 2016'!J46+'FY 2017'!J46+'FY 2018'!J46+'FY 2019'!J46+'FY 2020'!J46 -> 30207918 | K46: ='FY 2016'!K46+'FY 2017'!K46+'FY 2018'!K46+'FY 2019'!K46+'FY 2020'!K46 -> 166840945 | L46: 5523811313
B47: North Dakota | C47: ='FY 2016'!C47+'FY 2017'!C47+'FY 2018'!C47+'FY 2019'!C47+'FY 2020'!C47 -> 753047236 | D47: ='FY 2016'!D47+'FY 2017'!D47+'FY 2018'!D47+'FY 2019'!D47+'FY 2020'!D47 -> 354251121 | E47: ='FY 2016'!E47+'FY 2017'!E47+'FY 2018'!E47+'FY 2019'!E47+'FY 2020'!E47 -> 16441719 | F47: ='FY 2016'!F47+'FY 2017'!F47+'FY 2018'!F47+'FY 2019'!F47+'FY 2020'!F47 -> 5659405 | G47: ='FY 2016'!G47+'FY 2017'!G47+'FY 2018'!G47+'FY 2019'!G47+'FY 2020'!G47 -> 62844994 | H47: ='FY 2016'!H47+'FY 2017'!H47+'FY 2018'!H47+'FY 2019'!H47+'FY 2020'!H47 -> 19710413 | I47: ='FY 2016'!I47+'FY 2017'!I47+'FY 2018'!I47+'FY 2019'!I47+'FY 2020'!I47 -> 54564460 | J47: ='FY 2016'!J47+'FY 2017'!J47+'FY 2018'!J47+'FY 2019'!J47+'FY 2020'!J47 -> 8719304 | K47: ='FY 2016'!K47+'FY 2017'!K47+'FY 2018'!K47+'FY 2019'!K47+'FY 2020'!K47 -> 39667849 | L47: 1314906501
B48: Ohio | C48: ='FY 2016'!C48+'FY 2017'!C48+'FY 2018'!C48+'FY 2019'!C48+'FY 2020'!C48 -> 3928985930 | D48: ='FY 2016'!D48+'FY 2017'!D48+'FY 2018'!D48+'FY 2019'!D48+'FY 2020'!D48 -> 1824957754 | E48: ='FY 2016'!E48+'FY 2017'!E48+'FY 2018'!E48+'FY 2019'!E48+'FY 2020'!E48 -> 135726256 | F48: ='FY 2016'!F48+'FY 2017'!F48+'FY 2018'!F48+'FY 2019'!F48+'FY 2020'!F48 -> 8359255 | G48: ='FY 2016'!G48+'FY 2017'!G48+'FY 2018'!G48+'FY 2019'!G48+'FY 2020'!G48 -> 385043377 | H48: ='FY 2016'!H48+'FY 2017'!H48+'FY 2018'!H48+'FY 2019'!H48+'FY 2020'!H48 -> 45670089 | I48: ='FY 2016'!I48+'FY 2017'!I48+'FY 2018'!I48+'FY 2019'!I48+'FY 2020'!I48 -> 496650436 | J48: ='FY 2016'!J48+'FY 2017'!J48+'FY 2018'!J48+'FY 2019'!J48+'FY 2020'!J48 -> 60159150 | K48: ='FY 2016'!K48+'FY 2017'!K48+'FY 2018'!K48+'FY 2019'!K48+'FY 2020'!K48 -> 213763215 | L48: 7099315462
B49: Oklahoma | C49: ='FY 2016'!C49+'FY 2017'!C49+'FY 2018'!C49+'FY 2019'!C49+'FY 2020'!C49 -> 1979115272 | D49: ='FY 2016'!D49+'FY 2017'!D49+'FY 2018'!D49+'FY 2019'!D49+'FY 2020'!D49 -> 913387352 | E49: ='FY 2016'!E49+'FY 2017'!E49+'FY 2018'!E49+'FY 2019'!E49+'FY 2020'!E49 -> 64578848 | F49: ='FY 2016'!F49+'FY 2017'!F49+'FY 2018'!F49+'FY 2019'!F49+'FY 2020'!F49 -> 8935415 | G49: ='FY 2016'!G49+'FY 2017'!G49+'FY 2018'!G49+'FY 2019'!G49+'FY 2020'!G49 -> 189178013 | H49: ='FY 2016'!H49+'FY 2017'!H49+'FY 2018'!H49+'FY 2019'!H49+'FY 2020'!H49 -> 27795502 | I49: ='FY 2016'!I49+'FY 2017'!I49+'FY 2018'!I49+'FY 2019'!I49+'FY 2020'!I49 -> 60969525 | J49: ='FY 2016'!J49+'FY 2017'!J49+'FY 2018'!J49+'FY 2019'!J49+'FY 2020'!J49 -> 13427750 | K49: ='FY 2016'!K49+'FY 2017'!K49+'FY 2018'!K49+'FY 2019'!K49+'FY 2020'!K49 -> 101609004 | L49: 3358996681
B50: Oregon | C50: ='FY 2016'!C50+'FY 2017'!C50+'FY 2018'!C50+'FY 2019'!C50+'FY 2020'!C50 -> 1521199507 | D50: ='FY 2016'!D50+'FY 2017'!D50+'FY 2018'!D50+'FY 2019'!D50+'FY 2020'!D50 -> 713261770 | E50: ='FY 2016'!E50+'FY 2017'!E50+'FY 2018'!E50+'FY 2019'!E50+'FY 2020'!E50 -> 38737565 | F50: ='FY 2016'!F50+'FY 2017'!F50+'FY 2018'!F50+'FY 2019'!F50+'FY 2020'!F50 -> 8050765 | G50: ='FY 2016'!G50+'FY 2017'!G50+'FY 2018'!G50+'FY 2019'!G50+'FY 2020'!G50 -> 151414631 | H50: ='FY 2016'!H50+'FY 2017'!H50+'FY 2018'!H50+'FY 2019'!H50+'FY 2020'!H50 -> 15352693 | I50: ='FY 2016'!I50+'FY 2017'!I50+'FY 2018'!I50+'FY 2019'!I50+'FY 2020'!I50 -> 100622605 | J50: ='FY 2016'!J50+'FY 2017'!J50+'FY 2018'!J50+'FY 2019'!J50+'FY 2020'!J50 -> 18798716 | K50: ='FY 2016'!K50+'FY 2017'!K50+'FY 2018'!K50+'FY 2019'!K50+'FY 2020'!K50 -> 79823401 | L50: 2647261653
B51: Pennsylvania | C51: ='FY 2016'!C51+'FY 2017'!C51+'FY 2018'!C51+'FY 2019'!C51+'FY 2020'!C51 -> 4855148248 | D51: ='FY 2016'!D51+'FY 2017'!D51+'FY 2018'!D51+'FY 2019'!D51+'FY 2020'!D51 -> 2289554983 | E51: ='FY 2016'!E51+'FY 2017'!E51+'FY 2018'!E51+'FY 2019'!E51+'FY 2020'!E51 -> 131796500 | F51: ='FY 2016'!F51+'FY 2017'!F51+'FY 2018'!F51+'FY 2019'!F51+'FY 2020'!F51 -> 9956330 | G51: ='FY 2016'!G51+'FY 2017'!G51+'FY 2018'!G51+'FY 2019'!G51+'FY 2020'!G51 -> 497738628 | H51: ='FY 2016'!H51+'FY 2017'!H51+'FY 2018'!H51+'FY 2019'!H51+'FY 2020'!H51 -> 34510276 | I51: ='FY 2016'!I51+'FY 2017'!I51+'FY 2018'!I51+'FY 2019'!I51+'FY 2020'!I51 -> 542002878 | J51: ='FY 2016'!J51+'FY 2017'!J51+'FY 2018'!J51+'FY 2019'!J51+'FY 2020'!J51 -> 67361097 | K51: ='FY 2016'!K51+'FY 2017'!K51+'FY 2018'!K51+'FY 2019'!K51+'FY 2020'!K51 -> 261852454 | L51: 8689921394
B52: Rhode Island | C52: ='FY 2016'!C52+'FY 2017'!C52+'FY 2018'!C52+'FY 2019'!C52+'FY 2020'!C52 -> 658302206 | D52: ='FY 2016'!D52+'FY 2017'!D52+'FY 2018'!D52+'FY 2019'!D52+'FY 2020'!D52 -> 312863154 | E52: ='FY 2016'!E52+'FY 2017'!E52+'FY 2018'!E52+'FY 2019'!E52+'FY 2020'!E52 -> 12014144 | F52: ='FY 2016'!F52+'FY 2017'!F52+'FY 2018'!F52+'FY 2019'!F52+'FY 2020'!F52 -> 4325170 | G52: ='FY 2016'!G52+'FY 2017'!G52+'FY 2018'!G52+'FY 2019'!G52+'FY 2020'!G52 -> 66293092 | H52: ='FY 2016'!H52+'FY 2017'!H52+'FY 2018'!H52+'FY 2019'!H52+'FY 2020'!H52 -> 5875000 | I52: ='FY 2016'!I52+'FY 2017'!I52+'FY 2018'!I52+'FY 2019'!I52+'FY 2020'!I52 -> 54097893 | J52: ='FY 2016'!J52+'FY 2017'!J52+'FY 2018'!J52+'FY 2019'!J52+'FY 2020'!J52 -> 9644009 | K52: ='FY 2016'!K52+'FY 2017'!K52+'FY 2018'!K52+'FY 2019'!K52+'FY 2020'!K52 -> 34882187 | L52: 1158296855
B53: South Carolina | C53: ='FY 2016'!C53+'FY 2017'!C53+'FY 2018'!C53+'FY 2019'!C53+'FY 2020'!C53 -> 2086003038 | D53: ='FY 2016'!D53+'FY 2017'!D53+'FY 2018'!D53+'FY 2019'!D53+'FY 2020'!D53 -> 959077862 | E53: ='FY 2016'!E53+'FY 2017'!E53+'FY 2018'!E53+'FY 2019'!E53+'FY 2020'!E53 -> 75208107 | F53: ='FY 2016'!F53+'FY 2017'!F53+'FY 2018'!F53+'FY 2019'!F53+'FY 2020'!F53 -> 6056100 | G53: ='FY 2016'!G53+'FY 2017'!G53+'FY 2018'!G53+'FY 2019'!G53+'FY 2020'!G53 -> 206278685 | H53: ='FY 2016'!H53+'FY 2017'!H53+'FY 2018'!H53+'FY 2019'!H53+'FY 2020'!H53 -> 22412713 | I53: ='FY 2016'!I53+'FY 2017'!I53+'FY 2018'!I53+'FY 2019'!I53+'FY 2020'!I53 -> 67942582 | J53: ='FY 2016'!J53+'FY 2017'!J53+'FY 2018'!J53+'FY 2019'!J53+'FY 2020'!J53 -> 16357904 | K53: ='FY 2016'!K53+'FY 2017'!K53+'FY 2018'!K53+'FY 2019'!K53+'FY 2020'!K53 -> 107214664 | L53: 3546551655
B54: South Dakota | C54: ='FY 2016'!C54+'FY 2017'!C54+'FY 2018'!C54+'FY 2019'!C54+'FY 2020'!C54 -> 854802691 | D54: ='FY 2016'!D54+'FY 2017'!D54+'FY 2018'!D54+'FY 2019'!D54+'FY 2020'!D54 -> 399820770 | E54: ='FY 2016'!E54+'FY 2017'!E54+'FY 2018'!E54+'FY 2019'!E54+'FY 2020'!E54 -> 21723862 | F54: ='FY 2016'!F54+'FY 2017'!F54+'FY 2018'!F54+'FY 2019'!F54+'FY 2020'!F54 -> 5685965 | G54: ='FY 2016'!G54+'FY 2017'!G54+'FY 2018'!G54+'FY 2019'!G54+'FY 2020'!G54 -> 81332795 | H54: ='FY 2016'!H54+'FY 2017'!H54+'FY 2018'!H54+'FY 2019'!H54+'FY 2020'!H54 -> 12377837 | I54: ='FY 2016'!I54+'FY 2017'!I54+'FY 2018'!I54+'FY 2019'!I54+'FY 2020'!I54 -> 63623418 | J54: ='FY 2016'!J54+'FY 2017'!J54+'FY 2018'!J54+'FY 2019'!J54+'FY 2020'!J54 -> 9177110 | K54: ='FY 2016'!K54+'FY 2017'!K54+'FY 2018'!K54+'FY 2019'!K54+'FY 2020'!K54 -> 45082063 | L54: 1493626511
B55: Tennessee | C55: ='FY 2016'!C55+'FY 2017'!C55+'FY 2018'!C55+'FY 2019'!C55+'FY 2020'!C55 -> 2561993534 | D55: ='FY 2016'!D55+'FY 2017'!D55+'FY 2018'!D55+'FY 2019'!D55+'FY 2020'!D55 -> 1185914351 | E55: ='FY 2016'!E55+'FY 2017'!E55+'FY 2018'!E55+'FY 2019'!E55+'FY 2020'!E55 -> 86342787 | F55: ='FY 2016'!F55+'FY 2017'!F55+'FY 2018'!F55+'FY 2019'!F55+'FY 2020'!F55 -> 8203065 | G55: ='FY 2016'!G55+'FY 2017'!G55+'FY 2018'!G55+'FY 2019'!G55+'FY 2020'!G55 -> 255862973 | H55: ='FY 2016'!H55+'FY 2017'!H55+'FY 2018'!H55+'FY 2019'!H55+'FY 2020'!H55 -> 25004299 | I55: ='FY 2016'!I55+'FY 2017'!I55+'FY 2018'!I55+'FY 2019'!I55+'FY 2020'!I55 -> 192121822 | J55: ='FY 2016'!J55+'FY 2017'!J55+'FY 2018'!J55+'FY 2019'!J55+'FY 2020'!J55 -> 24964842 | K55: ='FY 2016'!K55+'FY 2017'!K55+'FY 2018'!K55+'FY 2019'!K55+'FY 2020'!K55 -> 135164833 | L55: 4475572506
B56: Texas | C56: ='FY 2016'!C56+'FY 2017'!C56+'FY 2018'!C56+'FY 2019'!C56+'FY 2020'!C56 -> 10405747969 | D56: ='FY 2016'!D56+'FY 2017'!D56+'FY 2018'!D56+'FY 2019'!D56+'FY 2020'!D56 -> 4796861080 | E56: ='FY 2016'!E56+'FY 2017'!E56+'FY 2018'!E56+'FY 2019'!E56+'FY 2020'!E56 -> 386229769 | F56: ='FY 2016'!F56+'FY 2017'!F56+'FY 2018'!F56+'FY 2019'!F56+'FY 2020'!F56 -> 19974110 | G56: ='FY 2016'!G56+'FY 2017'!G56+'FY 2018'!G56+'FY 2019'!G56+'FY 2020'!G56 -> 1045444157 | H56: ='FY 2016'!H56+'FY 2017'!H56+'FY 2018'!H56+'FY 2019'!H56+'FY 2020'!H56 -> 95314806 | I56: ='FY 2016'!I56+'FY 2017'!I56+'FY 2018'!I56+'FY 2019'!I56+'FY 2020'!I56 -> 853873808 | J56: ='FY 2016'!J56+'FY 2017'!J56+'FY 2018'!J56+'FY 2019'!J56+'FY 2020'!J56 -> 127107637 | K56: ='FY 2016'!K56+'FY 2017'!K56+'FY 2018'!K56+'FY 2019'!K56+'FY 2020'!K56 -> 551341597 | L56: 18281894933
B57: Utah | C57: ='FY 2016'!C57+'FY 2017'!C57+'FY 2018'!C57+'FY 2019'!C57+'FY 2020'!C57 -> 1056323551 | D57: ='FY 2016'!D57+'FY 2017'!D57+'FY 2018'!D57+'FY 2019'!D57+'FY 2020'!D57 -> 494290615 | E57: ='FY 2016'!E57+'FY 2017'!E57+'FY 2018'!E57+'FY 2019'!E57+'FY 2020'!E57 -> 25699346 | F57: ='FY 2016'!F57+'FY 2017'!F57+'FY 2018'!F57+'FY 2019'!F57+'FY 2020'!F57 -> 7809260 | G57: ='FY 2016'!G57+'FY 2017'!G57+'FY 2018'!G57+'FY 2019'!G57+'FY 2020'!G57 -> 107518924 | H57: ='FY 2016'!H57+'FY 2017'!H57+'FY 2018'!H57+'FY 2019'!H57+'FY 2020'!H57 -> 8284541 | I57: ='FY 2016'!I57+'FY 2017'!I57+'FY 2018'!I57+'FY 2019'!I57+'FY 2020'!I57 -> 67009421 | J57: ='FY 2016'!J57+'FY 2017'!J57+'FY 2018'!J57+'FY 2019'!J57+'FY 2020'!J57 -> 16828893 | K57: ='FY 2016'!K57+'FY 2017'!K57+'FY 2018'!K57+'FY 2019'!K57+'FY 2020'!K57 -> 55337562 | L57: 1839102113
B58: Vermont | C58: ='FY 2016'!C58+'FY 2017'!C58+'FY 2018'!C58+'FY 2019'!C58+'FY 2020'!C58 -> 602560063 | D58: ='FY 2016'!D58+'FY 2017'!D58+'FY 2018'!D58+'FY 2019'!D58+'FY 2020'!D58 -> 285462690 | E58: ='FY 2016'!E58+'FY 2017'!E58+'FY 2018'!E58+'FY 2019'!E58+'FY 2020'!E58 -> 11059348 | F58: ='FY 2016'!F58+'FY 2017'!F58+'FY 2018'!F58+'FY 2019'!F58+'FY 2020'!F58 -> 5140050 | G58: ='FY 2016'!G58+'FY 2017'!G58+'FY 2018'!G58+'FY 2019'!G58+'FY 2020'!G58 -> 60181283 | H58: ='FY 2016'!H58+'FY 2017'!H58+'FY 2018'!H58+'FY 2019'!H58+'FY 2020'!H58 -> 5875000 | I58: ='FY 2016'!I58+'FY 2017'!I58+'FY 2018'!I58+'FY 2019'!I58+'FY 2020'!I58 -> 61440092 | J58: ='FY 2016'!J58+'FY 2017'!J58+'FY 2018'!J58+'FY 2019'!J58+'FY 2020'!J58 -> 10886721 | K58: ='FY 2016'!K58+'FY 2017'!K58+'FY 2018'!K58+'FY 2019'!K58+'FY 2020'!K58 -> 32310882 | L58: 1074916129
B59: Virginia | C59: ='FY 2016'!C59+'FY 2017'!C59+'FY 2018'!C59+'FY 2019'!C59+'FY 2020'!C59 -> 3045494695 | D59: ='FY 2016'!D59+'FY 2017'!D59+'FY 2018'!D59+'FY 2019'!D59+'FY 2020'!D59 -> 1410966389 | E59: ='FY 2016'!E59+'FY 2017'!E59+'FY 2018'!E59+'FY 2019'!E59+'FY 2020'!E59 -> 105090102 | F59: ='FY 2016'!F59+'FY 2017'!F59+'FY 2018'!F59+'FY 2019'!F59+'FY 2020'!F59 -> 7635805 | G59: ='FY 2016'!G59+'FY 2017'!G59+'FY 2018'!G59+'FY 2019'!G59+'FY 2020'!G59 -> 310093080 | H59: ='FY 2016'!H59+'FY 2017'!H59+'FY 2018'!H59+'FY 2019'!H59+'FY 2020'!H59 -> 23775236 | I59: ='FY 2016'!I59+'FY 2017'!I59+'FY 2018'!I59+'FY 2019'!I59+'FY 2020'!I59 -> 284843416 | J59: ='FY 2016'!J59+'FY 2017'!J59+'FY 2018'!J59+'FY 2019'!J59+'FY 2020'!J59 -> 39262078 | K59: ='FY 2016'!K59+'FY 2017'!K59+'FY 2018'!K59+'FY 2019'!K59+'FY 2020'!K59 -> 162484018 | L59: 5389644819
B60: Washington | C60: ='FY 2016'!C60+'FY 2017'!C60+'FY 2018'!C60+'FY 2019'!C60+'FY 2020'!C60 -> 2020299085 | D60: ='FY 2016'!D60+'FY 2017'!D60+'FY 2018'!D60+'FY 2019'!D60+'FY 2020'!D60 -> 946763254 | E60: ='FY 2016'!E60+'FY 2017'!E60+'FY 2018'!E60+'FY 2019'!E60+'FY 2020'!E60 -> 54926192 | F60: ='FY 2016'!F60+'FY 2017'!F60+'FY 2018'!F60+'FY 2019'!F60+'FY 2020'!F60 -> 9431350 | G60: ='FY 2016'!G60+'FY 2017'!G60+'FY 2018'!G60+'FY 2019'!G60+'FY 2020'!G60 -> 199880956 | H60: ='FY 2016'!H60+'FY 2017'!H60+'FY 2018'!H60+'FY 2019'!H60+'FY 2020'!H60 -> 21597324 | I60: ='FY 2016'!I60+'FY 2017'!I60+'FY 2018'!I60+'FY 2019'!I60+'FY 2020'!I60 -> 191656459 | J60: ='FY 2016'!J60+'FY 2017'!J60+'FY 2018'!J60+'FY 2019'!J60+'FY 2020'!J60 -> 38026024 | K60: ='FY 2016'!K60+'FY 2017'!K60+'FY 2018'!K60+'FY 2019'!K60+'FY 2020'!K60 -> 107873727 | L60: 3590454371
B61: West Virginia | C61: ='FY 2016'!C61+'FY 2017'!C61+'FY 2018'!C61+'FY 2019'!C61+'FY 2020'!C61 -> 1343440590 | D61: ='FY 2016'!D61+'FY 2017'!D61+'FY 2018'!D61+'FY 2019'!D61+'FY 2020'!D61 -> 634976638 | E61: ='FY 2016'!E61+'FY 2017'!E61+'FY 2018'!E61+'FY 2019'!E61+'FY 2020'!E61 -> 29170897 | F61: ='FY 2016'!F61+'FY 2017'!F61+'FY 2018'!F61+'FY 2019'!F61+'FY 2020'!F61 -> 6555375 | G61: ='FY 2016'!G61+'FY 2017'!G61+'FY 2018'!G61+'FY 2019'!G61+'FY 2020'!G61 -> 136815682 | H61: ='FY 2016'!H61+'FY 2017'!H61+'FY 2018'!H61+'FY 2019'!H61+'FY 2020'!H61 -> 10465627 | I61: ='FY 2016'!I61+'FY 2017'!I61+'FY 2018'!I61+'FY 2019'!I61+'FY 2020'!I61 -> 74286181 | J61: ='FY 2016'!J61+'FY 2017'!J61+'FY 2018'!J61+'FY 2019'!J61+'FY 2020'!J61 -> 8840081 | K61: ='FY 2016'!K61+'FY 2017'!K61+'FY 2018'!K61+'FY 2019'!K61+'FY 2020'!K61 -> 70028323 | L61: 2314579394
B62: Wisconsin | C62: ='FY 2016'!C62+'FY 2017'!C62+'FY 2018'!C62+'FY 2019'!C62+'FY 2020'!C62 -> 2298754936 | D62: ='FY 2016'!D62+'FY 2017'!D62+'FY 2018'!D62+'FY 2019'!D62+'FY 2020'!D62 -> 1050636233 | E62: ='FY 2016'!E62+'FY 2017'!E62+'FY 2018'!E62+'FY 2019'!E62+'FY 2020'!E62 -> 86723415 | F62: ='FY 2016'!F62+'FY 2017'!F62+'FY 2018'!F62+'FY 2019'!F62+'FY 2020'!F62 -> 10838770 | G62: ='FY 2016'!G62+'FY 2017'!G62+'FY 2018'!G62+'FY 2019'!G62+'FY 2020'!G62 -> 221924721 | H62: ='FY 2016'!H62+'FY 2017'!H62+'FY 2018'!H62+'FY 2019'!H62+'FY 2020'!H62 -> 30086071 | I62: ='FY 2016'!I62+'FY 2017'!I62+'FY 2018'!I62+'FY 2019'!I62+'FY 2020'!I62 -> 142099729 | J62: ='FY 2016'!J62+'FY 2017'!J62+'FY 2018'!J62+'FY 2019'!J62+'FY 2020'!J62 -> 23743184 | K62: ='FY 2016'!K62+'FY 2017'!K62+'FY 2018'!K62+'FY 2019'!K62+'FY 2020'!K62 -> 120305648 | L62: 3985112707
B63: Wyoming | C63: ='FY 2016'!C63+'FY 2017'!C63+'FY 2018'!C63+'FY 2019'!C63+'FY 2020'!C63 -> 778983972 | D63: ='FY 2016'!D63+'FY 2017'!D63+'FY 2018'!D63+'FY 2019'!D63+'FY 2020'!D63 -> 370509324 | E63: ='FY 2016'!E63+'FY 2017'!E63+'FY 2018'!E63+'FY 2019'!E63+'FY 2020'!E63 -> 11356411 | F63: ='FY 2016'!F63+'FY 2017'!F63+'FY 2018'!F63+'FY 2019'!F63+'FY 2020'!F63 -> 7372380 | G63: ='FY 2016'!G63+'FY 2017'!G63+'FY 2018'!G63+'FY 2019'!G63+'FY 2020'!G63 -> 79524025 | H63: ='FY 2016'!H63+'FY 2017'!H63+'FY 2018'!H63+'FY 2019'!H63+'FY 2020'!H63 -> 5875000 | I63: ='FY 2016'!I63+'FY 2017'!I63+'FY 2018'!I63+'FY 2019'!I63+'FY 2020'!I63 -> 54045958 | J63: ='FY 2016'!J63+'FY 2017'!J63+'FY 2018'!J63+'FY 2019'!J63+'FY 2020'!J63 -> 8210346 | K63: ='FY 2016'!K63+'FY 2017'!K63+'FY 2018'!K63+'FY 2019'!K63+'FY 2020'!K63 -> 40957220 | L63: 1356834636
B65: Apportioned Total | C65: =SUM(C13:C63) -> 116399144775 | D65: =SUM(D13:D63) -> 54048082929 | E65: 3799200000 | F65: 420800000 | G65: 11585393509 | H65: =SUM(H13:H63) -> 1175000000 | I65: 12022732534 | J65: 1717082358 | K65: =SUM(K13:K63) -> 6246586977 | L65: 207414023082
B67: 1 Reflects $3,500,000 takedown for safety-related programs for each fiscal year.
B69: Disclaimer: This technical assistance is provided in response to a Congressional request and is not intended to reflect the viewpoint or policies of any element of the
B70: Department of Transportation or the Administration.

Sheet FY 2016
A1: FHWA, HCFB-11 | B1: U.S. DEPARTMENT OF TRANSPORTATION | M1: =Comparison!L1 -> 2015-12-01
A2: =Comparison!A2 -> TA | B2: FEDERAL HIGHWAY ADMINISTRATION
B5: SUMMARY OF ESTIMATED FY 2016 APPORTIONMENTS UNDER THE CONFERENCE REPORT FOR H.R. 22 (FAST ACT)
B6: (before post-apportionment setasides; before penalties; before sequestration)
C8: National | D8: Surface | E8: Surface | F8: STBGP set-aside: | G8: Highway | H8: Railway-
C9: Highway | D9: Transportation | E9: Transportation | F9: Recreational | G9: Safety | H9: Highway | K9: National
C10: Performance | D10: Block Grant | E10: Block Grant | F10: Trails | G10: Improvement | H10: Crossings | I10: CMAQ | J10: Metropolitan | K10: Freight | L10: Apportioned
B11: State | C11: Program | D11: Program | E11: Set-aside | F11: Program | G11: Program 1 | H11: Program | I11: Program | J11: Planning | K11: Program | L11: Total
B13: Alabama | C13: 455951217 | D13: 209631313 | E13: 15592429 | F13: 1749787 | G13: 45374122 | H13: 4658949 | I13: 11363745 | J13: 3061993 | K13: 22188355 | L13: =SUM(C13:K13) -> 769571910
B14: Alaska | C14: 288517077 | D14: 137445922 | E14: 5135723 | F14: 1527922 | G14: 30534956 | H14: 1125000 | I14: 27412516 | J14: 2258068 | K14: 14657416 | L14: =SUM(C14:K14) -> 508614600
B15: Arizona | C15: 411997759 | D15: 188739367 | E15: 15467687 | F15: 1934863 | G15: 42484510 | H15: 2725399 | I15: 51676497 | J15: 5827406 | K15: 21312957 | L15: 742166445
B16: Arkansas | C16: 308512509 | D16: 142491405 | E16: 9692709 | F16: 1493969 | G16: 30010642 | H16: 3843480 | I16: 12266258 | J16: 1711004 | K16: 15153085 | L16: 525175061
B17: California | C17: 1924660268 | D17: 894076885 | E17: 68901913 | F17: 5756189 | G17: 195471326 | H17: 15728162 | I17: 462277146 | J17: 49825833 | K17: 106303825 | L17: 3723001547
B18: Colorado | C18: 297705132 | D18: 137015364 | E18: 10486329 | F18: 1591652 | G18: 29431653 | H18: 3236539 | I18: 42132383 | J18: 5266924 | K18: 15546723 | L18: 542412699
B19: Connecticut | C19: 276979163 | D19: 129967162 | E19: 7892325 | F19: 962216 | G19: 29080605 | H19: 1313257 | I19: 44069978 | J19: 4596004 | K19: 14613003 | L19: 509473713
B20: Delaware | C20: 95199826 | D20: 43937897 | E20: 2791539 | F20: 905680 | G20: 9321599 | H20: 1125000 | I20: 11616546 | J20: 1774540 | K20: 4914864 | L20: 171587491
B21: Dist. of Col. | C21: 90309344 | D21: 41937898 | E21: 2404385 | F21: 825098 | G21: 8784950 | H21: 1125000 | I21: 10062647 | J21: 1767535 | K21: 4633177 | L21: 161850034
B22: Florida | C22: 1140082761 | D22: 516661110 | E22: 48217971 | F22: 2602532 | G22: 116455633 | H22: 8649509 | I22: 13544856 | J22: 20619163 | K22: 55027110 | L22: 1921860645
B23: Georgia | C23: 743626331 | D23: 337736885 | E23: 31926010 | F23: 1740137 | G23: 73562218 | H23: 8038417 | I23: 67684920 | J23: 7737332 | K23: 37687569 | L23: 1309739819
B24: Hawaii | C24: 96031897 | D24: 44309737 | E24: 2747081 | F24: 960464 | G24: 9412905 | H24: 1125000 | I24: 10318553 | J24: 1741625 | K24: 4915116 | L24: 171562378
B25: Idaho | C25: 166207549 | D25: 77357678 | E25: 3885329 | F25: 1710560 | G25: 16430694 | H25: 1807823 | I25: 12764129 | J25: 1612379 | K25: 8351391 | L25: 290127532
B26: Illinois | C26: 791183895 | D26: 366985793 | E26: 27734998 | F26: 1525297 | G26: 76305872 | H26: 10513416 | I26: 109668007 | J26: 16992504 | K26: 41246826 | L26: 1442156608
B27: Indiana | C27: 550991617 | D27: 252233208 | E27: 21669026 | F27: 1201709 | G27: 52999254 | H27: 7462921 | I27: 46932909 | J27: 5212406 | K27: 27826482 | L27: 966529532
B28: Iowa | C28: 292883109 | D28: 135317156 | E28: 9199453 | F28: 1374817 | G28: 26802644 | H28: 5336411 | I28: 11251436 | J28: 1975337 | K28: 14373417 | L28: 498513780
B29: Kansas | C29: 224418519 | D29: 101185088 | E29: 9248438 | F29: 1384250 | G29: 18530162 | H29: 6096042 | I29: 9479395 | J29: 1939764 | K29: 11039660 | L29: 383321318
B30: Kentucky | C30: 397052354 | D30: 184438760 | E30: 11875707 | F30: 1424395 | G30: 39910933 | H30: 3658966 | I30: 13646275 | J30: 2522778 | K30: 19436551 | L30: 673966719
B31: Louisiana | C31: 420336110 | D31: 197149265 | E31: 10632662 | F31: 1517643 | G31: 42041101 | H31: 4083803 | I31: 11402016 | J31: 4281457 | K31: 20483439 | L31: 711927496
B32: Maine | C32: 105490588 | D32: 49280292 | E32: 1996460 | F32: 1442741 | G32: 10315283 | H32: 1260556 | I32: 10257182 | J32: 1834517 | K32: 5366346 | L32: 187243965
B33: Maryland | C33: 330040161 | D33: 153144738 | E33: 11203275 | F33: 1123620 | G33: 33870292 | H33: 2346133 | I33: 53487408 | J33: 6905801 | K33: 17442171 | L33: 609563599
B34: Massachusetts | C34: 326532639 | D34: 152064168 | E34: 10753076 | F34: 1186729 | G34: 33358355 | H34: 2473177 | I34: 63174562 | J34: 8951863 | K34: 17569747 | L34: 616064316
B35: Michigan | C35: 592091019 | D35: 269411107 | E35: 24017526 | F35: 2853955 | G35: 57284399 | H35: 7687753 | I35: 73718834 | J35: 10312637 | K35: 30612639 | L35: 1067989869
B36: Minnesota | C36: 376470972 | D36: 170987758 | E36: 14587471 | F36: 2416048 | G36: 35243727 | H36: 6067708 | I36: 32101015 | J36: 4553423 | K36: 19013769 | L36: 661441891
B37: Mississippi | C37: 288315734 | D37: 132800919 | E37: 9450073 | F37: 1361924 | G37: 28177385 | H37: 3460477 | I37: 11175589 | J37: 1693464 | K37: 14152310 | L37: 490587875
B38: Missouri | C38: 562174933 | D38: 260166347 | E38: 18278023 | F38: 1663399 | G38: 56082029 | H38: 5607330 | I38: 23479971 | J38: 5176323 | K38: 27646548 | L38: 960274903
B39: Montana | C39: 240963310 | D39: 114164044 | E39: 4393753 | F39: 1606705 | G39: 24539915 | H39: 1901805 | I39: 14829579 | J39: 1790379 | K39: 11995469 | L39: 416184959
B40: Nebraska | C40: 169638303 | D40: 77706208 | E40: 5676690 | F40: 1217387 | G40: 14949684 | H40: 3665302 | I40: 10248103 | J40: 1650549 | K40: 8438960 | L40: 293191186
B41: Nevada | C41: 199908721 | D41: 93845660 | E41: 5004381 | F41: 1357950 | G41: 20811661 | H41: 1125000 | I41: 32443244 | J41: 3269120 | K41: 10566287 | L41: 368332024
B42: New Hampshire | C42: 93744154 | D42: 42984645 | E42: 2623489 | F42: 1267944 | G42: 9161864 | H42: 1125000 | I42: 10309073 | J42: 1574311 | K42: 4805235 | L42: 167595715
B43: New Jersey | C43: 538350601 | D43: 252199443 | E43: 16900126 | F43: 1226757 | G43: 55351201 | H43: 3723833 | I43: 103689682 | J43: 12397571 | K43: 28952836 | L43: 1012792050
B44: New Mexico | C44: 216882649 | D44: 100654542 | E44: 6024546 | F44: 1429831 | G44: 22185636 | H44: 1613631 | I44: 11368844 | J44: 1602915 | K44: 10736322 | L44: 372498916
B45: New York | C45: 897352887 | D45: 421942772 | E45: 26772057 | F45: 2204556 | G45: 92217324 | H45: 6252246 | I45: 182483421 | J45: 24869709 | K45: 48554600 | L45: 1702649572
B46: North Carolina | C46: 603240031 | D46: 277423558 | E46: 22148051 | F46: 1613560 | G46: 59665889 | H46: 6529682 | I46: 51053464 | J46: 5792724 | K46: 30455093 | L46: 1057922052
B47: North Dakota | C47: 144482130 | D47: 67729043 | E47: 3241209 | F47: 1131881 | G47: 12080179 | H47: 3774334 | I47: 10479532 | J47: 1672029 | K47: 7240957 | L47: 251831294
B48: Ohio | C48: 753801609 | D48: 348692516 | E48: 26837960 | F48: 1671851 | G48: 73971867 | H48: 8745336 | I48: 95385605 | J48: 11536224 | K48: 39020269 | L48: 1359663237
B49: Oklahoma | C49: 379730372 | D49: 174538179 | E49: 12758986 | F49: 1787083 | G49: 36346556 | H49: 5322543 | I49: 11709675 | J49: 2574929 | K49: 18547675 | L49: 643315998
B50: Oregon | C50: 291863356 | D50: 136354791 | E50: 7647727 | F50: 1610153 | G50: 29087277 | H50: 2939877 | I50: 19325359 | J50: 3604875 | K50: 14570938 | L50: 507004353
B51: Pennsylvania | C51: 931501130 | D51: 437718754 | E51: 26056984 | F51: 1991266 | G51: 95608422 | H51: 6608351 | I51: 104095897 | J51: 12917282 | K51: 47798464 | L51: 1664296550
B52: Rhode Island | C52: 126303052 | D52: 59834985 | E52: 2367982 | F52: 865034 | G52: 12734661 | H52: 1125000 | I52: 10389924 | J52: 1849352 | K52: 6367383 | L52: 221837373
B53: South Carolina | C53: 400238109 | D53: 183242807 | E53: 14868309 | F53: 1211220 | G53: 39627687 | H53: 4291796 | I53: 13048905 | J53: 3136820 | K53: 19570931 | L53: 679236584
B54: South Dakota | C54: 164005151 | D54: 76425846 | E54: 4286315 | F54: 1137193 | G54: 15626616 | H54: 2370224 | I54: 12219376 | J54: 1759819 | K54: 8229265 | L54: 286059805
B55: Tennessee | C55: 491552314 | D55: 226604719 | E55: 17066919 | F55: 1640613 | G55: 49151643 | H55: 4788057 | I55: 36898500 | J55: 4787302 | K55: 24672946 | L55: 857163013
B56: Texas | C56: 1996468665 | D56: 916422524 | E56: 76379642 | F56: 3994822 | G56: 200827495 | H56: 18251772 | I56: 163993152 | J56: 24374383 | K56: 100641720 | L56: 3501354175
B57: Utah | C57: 202670322 | D57: 94486990 | E57: 5068405 | F57: 1561852 | G57: 20653300 | H57: 1586401 | I57: 12869684 | J57: 3227138 | K57: 10101301 | L57: 352225393
B58: Vermont | C58: 115606627 | D58: 54584692 | E58: 2177321 | F58: 1028010 | G58: 11560907 | H58: 1125000 | I58: 11800051 | J58: 2087656 | K58: 5898018 | L58: 205868282
B59: Virginia | C59: 584310665 | D59: 269597493 | E59: 20777610 | F59: 1527161 | G59: 59565683 | H59: 4552705 | I59: 54706409 | J59: 7528965 | K59: 29659781 | L59: 1032226472
B60: Washington | C60: 387614261 | D60: 180969925 | E60: 10847983 | F60: 1886270 | G60: 38398568 | H60: 4135658 | I60: 36809124 | J60: 7291937 | K60: 19691236 | L60: 687644962
B61: West Virginia | C61: 257760426 | D61: 121429137 | E61: 5757986 | F61: 1311075 | G61: 26280869 | H61: 2004056 | I61: 14267243 | J61: 1695189 | K61: 12782948 | L61: 443288929
B62: Wisconsin | C62: 441049920 | D62: 200672838 | E62: 17136612 | F62: 2167754 | G62: 42636738 | H62: 5761163 | I62: 27291366 | J62: 4553034 | K62: 21960555 | L62: 763229980
B63: Wyoming | C63: 149458812 | D63: 70865435 | E63: 2231339 | F63: 1474476 | G63: 15275621 | H63: 1125000 | I63: 10379950 | J63: 1574430 | K63: 7476318 | L63: 259861381
B65: Apportioned Total | C65: =SUM(C13:C63) -> 22332260060 | D65: =SUM(D13:D63) -> 10327564768 | E65: =SUM(E13:E63) -> 750840000 | F65: =SUM(F13:F63) -> 84160000 | G65: =SUM(G13:G63) -> 2225594512 | H65: 225000000 | I65: 2309059935 | J65: 329270722 | K65: 1140250003 | L65: =SUM(L13:L63) -> 39724000000
B67: 1 Reflects $3,500,000 takedown for safety-related programs.
B69: Disclaimer: This technical assistance is provided in response to a Congressional request and is not intended to reflect the viewpoint or policies of any element of the
B70: Department of Transportation or the Administration.

Sheet FY 2017
A1: FHWA, HCFB-11 | B1: U.S. DEPARTMENT OF TRANSPORTATION | M1: =Comparison!L1 -> 2015-12-01
A2: =Comparison!A2 -> TA | B2: FEDERAL HIGHWAY ADMINISTRATION
B5: SUMMARY OF ESTIMATED FY 2017 APPORTIONMENTS UNDER THE CONFERENCE REPORT FOR H.R. 22 (FAST ACT)
B6: (before post-apportionment setasides; before penalties; before sequestration)
C8: National | D8: Surface | E8: Surface | F8: STBGP set-aside: | G8: Highway | H8: Railway-
C9: Highway | D9: Transportation | E9: Transportation | F9: Recreational | G9: Safety | H9: Highway | K9: National
C10: Performance | D10: Block Grant | E10: Block Grant | F10: Trails | G10: Improvement | H10: Crossings | I10: CMAQ | J10: Metropolitan | K10: Freight | L10: Apportioned
B11: State | C11: Program | D11: Program | E11: Set-aside | F11: Program | G11: Program 1 | H11: Program | I11: Program | J11: Planning | K11: Program | L11: Total
B13: Alabama | C13: 466070774 | D13: 214942033 | E13: 15592429 | F13: 1749787 | G13: 46382630 | H13: 4762481 | I13: 11615956 | J13: 3123997 | K13: 21223644 | L13: =SUM(C13:K13) -> 785463731
B14: Alaska | C14: 294920537 | D14: 140824892 | E14: 5135723 | F14: 1527922 | G14: 31213632 | H14: 1150000 | I14: 28020920 | J14: 2303794 | K14: 14020137 | L14: =SUM(C14:K14) -> 519117557
B15: Arizona | C15: 421141797 | D15: 193578012 | E15: 15467687 | F15: 1934863 | G15: 43428784 | H15: 2785964 | I15: 52823425 | J15: 5945409 | K15: 20386307 | L15: 757492248
B16: Arkansas | C16: 315359754 | D16: 146088622 | E16: 9692709 | F16: 1493969 | G16: 30677676 | H16: 3928891 | I16: 12538500 | J16: 1745652 | K16: 14494254 | L16: 536020027
B17: California | C17: 1967376918 | D17: 916898934 | E17: 68901913 | F17: 5756189 | G17: 199815949 | H17: 16077677 | I17: 472537102 | J17: 50834794 | K17: 101681920 | L17: 3799881396
B18: Colorado | C18: 304312514 | D18: 140516942 | E18: 10486329 | F18: 1591652 | G18: 30085816 | H18: 3308462 | I18: 43067485 | J18: 5373578 | K18: 14870779 | L18: 553613557
B19: Connecticut | C19: 283126545 | D19: 133229077 | E19: 7892325 | F19: 962216 | G19: 29726958 | H19: 1342440 | I19: 45048084 | J19: 4689072 | K19: 13977655 | L19: 519994372
B20: Delaware | C20: 97312728 | D20: 45056038 | E20: 2791539 | F20: 905680 | G20: 9528786 | H20: 1150000 | I20: 11874368 | J20: 1810474 | K20: 4701174 | L20: 175130787
B21: Dist. of Col. | C21: 92313704 | D21: 42997814 | E21: 2404385 | F21: 825098 | G21: 8980209 | H21: 1150000 | I21: 10285981 | J21: 1803328 | K21: 4431734 | L21: 165192253
B22: Florida | C22: 1165386197 | D22: 529938236 | E22: 48217971 | F22: 2602532 | G22: 119044018 | H22: 8841721 | I22: 13845475 | J22: 21036696 | K22: 52634627 | L22: 1961547473
B23: Georgia | C23: 760130660 | D23: 346444875 | E23: 31926010 | F23: 1740137 | G23: 75197249 | H23: 8217049 | I23: 69187145 | J23: 7894011 | K23: 36048979 | L23: 1336786115
B24: Hawaii | C24: 98163265 | D24: 45436352 | E24: 2747081 | F24: 960464 | G24: 9622121 | H24: 1150000 | I24: 10547567 | J24: 1776893 | K24: 4701415 | L24: 175105158
B25: Idaho | C25: 169896423 | D25: 79301770 | E25: 3885329 | F25: 1710560 | G25: 16795891 | H25: 1847997 | I25: 13047421 | J25: 1645029 | K25: 7988287 | L25: 296118707
B26: Illinois | C26: 808743734 | D26: 376292163 | E26: 27734998 | F26: 1525297 | G26: 78001894 | H26: 10747047 | I26: 112102021 | J26: 17336598 | K26: 39453486 | L26: 1471937238
B27: Indiana | C27: 563220536 | D27: 258682067 | E27: 21669026 | F27: 1201709 | G27: 54177250 | H27: 7628763 | I27: 47974557 | J27: 5317955 | K27: 26616635 | L27: 986488498
B28: Iowa | C28: 299383469 | D28: 138732089 | E28: 9199453 | F28: 1374817 | G28: 27398382 | H28: 5454998 | I28: 11501155 | J28: 2015337 | K28: 13748486 | L28: 508808186
B29: Kansas | C29: 229399350 | D29: 103802886 | E29: 9248438 | F29: 1384250 | G29: 18942038 | H29: 6231510 | I29: 9689784 | J29: 1979044 | K29: 10559675 | L29: 391236975
B30: Kentucky | C30: 405864687 | D30: 189066697 | E30: 11875707 | F30: 1424395 | G30: 40798011 | H30: 3740276 | I30: 13949145 | J30: 2573864 | K30: 18591483 | L30: 687884265
B31: Louisiana | C31: 429665212 | D31: 202047259 | E31: 10632662 | F31: 1517643 | G31: 42975527 | H31: 4174554 | I31: 11655077 | J31: 4368155 | K31: 19592854 | L31: 726628943
B32: Maine | C32: 107831887 | D32: 50516836 | E32: 1996460 | F32: 1442741 | G32: 10544557 | H32: 1288568 | I32: 10484834 | J32: 1871665 | K32: 5133026 | L32: 191110574
B33: Maryland | C33: 337365199 | D33: 157033659 | E33: 11203275 | F33: 1123620 | G33: 34623105 | H33: 2398269 | I33: 54674529 | J33: 7045642 | K33: 16683816 | L33: 622151114
B34: Massachusetts | C34: 333779829 | D34: 155922823 | E34: 10753076 | F34: 1186729 | G34: 34099790 | H34: 2528137 | I34: 64576683 | J34: 9133136 | K34: 16805845 | L34: 628786048
B35: Michigan | C35: 605232115 | D35: 276366028 | E35: 24017526 | F35: 2853955 | G35: 58557637 | H35: 7858592 | I35: 75354978 | J35: 10521465 | K35: 29281655 | L35: 1090043951
B36: Minnesota | C36: 384826513 | D36: 175394905 | E36: 14587471 | F36: 2416048 | G36: 36027080 | H36: 6202546 | I36: 32813478 | J36: 4645629 | K36: 18187084 | L36: 675100754
B37: Mississippi | C37: 294714725 | D37: 136162467 | E37: 9450073 | F37: 1361924 | G37: 28803671 | H37: 3537376 | I37: 11423625 | J37: 1727757 | K37: 13536992 | L37: 500718610
B38: Missouri | C38: 574652060 | D38: 266724044 | E38: 18278023 | F38: 1663399 | G38: 57328534 | H38: 5731938 | I38: 24001094 | J38: 5281142 | K38: 26444524 | L38: 980104758
B39: Montana | C39: 246311342 | D39: 116978758 | E39: 4393753 | F39: 1606705 | G39: 25085348 | H39: 1944067 | I39: 15158713 | J39: 1826634 | K39: 11473927 | L39: 424779247
B40: Nebraska | C40: 173403320 | D40: 79687936 | E40: 5676690 | F40: 1217387 | G40: 15281971 | H40: 3746753 | I40: 10475553 | J40: 1683973 | K40: 8072049 | L40: 299245632
B41: Nevada | C41: 204345572 | D41: 96200465 | E41: 5004381 | F41: 1357950 | G41: 21274227 | H41: 1150000 | I41: 33163302 | J41: 3335318 | K41: 10106883 | L41: 375938098
B42: New Hampshire | C42: 95824748 | D42: 44084523 | E42: 2623489 | F42: 1267944 | G42: 9365500 | H42: 1150000 | I42: 10537877 | J42: 1606191 | K42: 4596312 | L42: 171056584
B43: New Jersey | C43: 550298961 | D43: 258558686 | E43: 16900126 | F43: 1226757 | G43: 56581457 | H43: 3806584 | I43: 105991011 | J43: 12648619 | K43: 27694017 | L43: 1033706218
B44: New Mexico | C44: 221696226 | D44: 103186182 | E44: 6024546 | F44: 1429831 | G44: 22678742 | H44: 1649490 | I44: 11621169 | J44: 1635373 | K44: 10269525 | L44: 380191084
B45: New York | C45: 917269083 | D45: 432555049 | E45: 26772057 | F45: 2204556 | G45: 94266978 | H45: 6391185 | I45: 186533528 | J45: 25373314 | K45: 46443530 | L45: 1737809280
B46: North Carolina | C46: 616628572 | D46: 284483717 | E46: 22148051 | F46: 1613560 | G46: 60992054 | H46: 6674786 | I46: 52186564 | J46: 5910024 | K46: 29130959 | L46: 1079768287
B47: North Dakota | C47: 147688822 | D47: 69418701 | E47: 3241209 | F47: 1131881 | G47: 12348689 | H47: 3858208 | I47: 10712119 | J47: 1705887 | K47: 6926132 | L47: 257031648
B48: Ohio | C48: 770531771 | D48: 357546938 | E48: 26837960 | F48: 1671851 | G48: 75616005 | H48: 8939677 | I48: 97502631 | J48: 11769830 | K48: 37323736 | L48: 1387740399
B49: Oklahoma | C49: 388158253 | D49: 178963151 | E49: 12758986 | F49: 1787083 | G49: 37154418 | H49: 5440822 | I49: 11969564 | J49: 2627071 | K49: 17741255 | L49: 656600603
B50: Oregon | C50: 298341083 | D50: 139766549 | E50: 7647727 | F50: 1610153 | G50: 29733784 | H50: 3005208 | I50: 19754274 | J50: 3677872 | K50: 13937420 | L50: 517474070
B51: Pennsylvania | C51: 952175225 | D51: 448646954 | E51: 26056984 | F51: 1991266 | G51: 97733448 | H51: 6755203 | I51: 106406241 | J51: 13178854 | K51: 45720270 | L51: 1698664445
B52: Rhode Island | C52: 129106271 | D52: 61313487 | E52: 2367982 | F52: 865034 | G52: 13017707 | H52: 1150000 | I52: 10620522 | J52: 1886801 | K52: 6090541 | L52: 226418345
B53: South Carolina | C53: 409121148 | D53: 187907759 | E53: 14868309 | F53: 1211220 | G53: 40508472 | H53: 4387169 | I53: 13338517 | J53: 3200341 | K53: 18720020 | L53: 693262955
B54: South Dakota | C54: 167645145 | D54: 78343988 | E54: 4286315 | F54: 1137193 | G54: 15973943 | H54: 2422896 | I54: 12490577 | J54: 1795455 | K54: 7871471 | L54: 291966983
B55: Tennessee | C55: 502462014 | D55: 232353548 | E55: 17066919 | F55: 1640613 | G55: 50244109 | H55: 4894459 | I55: 37717440 | J55: 4884244 | K55: 23600209 | L55: 874863555
B56: Texas | C56: 2040779058 | D56: 939788723 | E56: 76379642 | F56: 3994822 | G56: 205291175 | H56: 18657366 | I56: 167632879 | J56: 24867959 | K56: 96265993 | L56: 3573657617
B57: Utah | C57: 207168465 | D57: 96856258 | E57: 5068405 | F57: 1561852 | G57: 21112347 | H57: 1621655 | I57: 13155319 | J57: 3292487 | K57: 9662114 | L57: 359498902
B58: Vermont | C58: 118172444 | D58: 55940384 | E58: 2177321 | F58: 1028010 | G58: 11817865 | H58: 1150000 | I58: 12061946 | J58: 2129932 | K58: 5641582 | L58: 210119484
B59: Virginia | C59: 597279081 | D59: 276442502 | E59: 20777610 | F59: 1527161 | G59: 60889613 | H59: 4653876 | I59: 55920584 | J59: 7681424 | K59: 28370225 | L59: 1053542076
B60: Washington | C60: 396217121 | D60: 185513169 | E60: 10847983 | F60: 1886270 | G60: 39252034 | H60: 4227561 | I60: 37626080 | J60: 7439597 | K60: 18835095 | L60: 701844910
B61: West Virginia | C61: 263481261 | D61: 124438433 | E61: 5757986 | F61: 1311075 | G61: 26864997 | H61: 2048591 | I61: 14583895 | J61: 1729517 | K61: 12227167 | L61: 452442922
B62: Wisconsin | C62: 450838751 | D62: 205826027 | E62: 17136612 | F62: 2167754 | G62: 43584409 | H62: 5889188 | I62: 27897081 | J62: 4645233 | K62: 21005748 | L62: 778990803
B63: Wyoming | C63: 152775958 | D63: 72612743 | E63: 2231339 | F63: 1474476 | G63: 15615143 | H63: 1150000 | I63: 10610326 | J63: 1606312 | K63: 7151261 | L63: 265227558
B65: Apportioned Total | C65: =SUM(C13:C63) -> 22827910827 | D65: =SUM(D13:D63) -> 10589412150 | E65: =SUM(E13:E63) -> 750840000 | F65: =SUM(F13:F63) -> 84160000 | G65: =SUM(G13:G63) -> 2275061630 | H65: 230000000 | I65: 2360308101 | J65: 335938378 | K65: 1090673914 | L65: 40544305000
B67: 1 Reflects $3,500,000 takedown for safety-related programs.
B69: Disclaimer: This technical assistance is provided in response to a Congressional request and is not intended to reflect the viewpoint or policies of any element of the
B70: Department of Transportation or the Administration.

Sheet FY 2018
A1: FHWA, HCFB-11 | B1: U.S. DEPARTMENT OF TRANSPORTATION | M1: =Comparison!L1 -> 2015-12-01
A2: =Comparison!A2 -> TA | B2: FEDERAL HIGHWAY ADMINISTRATION
B5: SUMMARY OF ESTIMATED FY 2018 APPORTIONMENTS UNDER THE CONFERENCE REPORT FOR H.R. 22 (FAST ACT)
B6: (before post-apportionment setasides; before penalties; before sequestration)
C8: National | D8: Surface | E8: Surface | F8: STBGP set-aside: | G8: Highway | H8: Railway-
C9: Highway | D9: Transportation | E9: Transportation | F9: Recreational | G9: Safety | H9: Highway | K9: National
C10: Performance | D10: Block Grant | E10: Block Grant | F10: Trails | G10: Improvement | H10: Crossings | I10: CMAQ | J10: Metropolitan | K10: Freight | L10: Apportioned
B11: State | C11: Program | D11: Program | E11: Set-aside | F11: Program | G11: Program 1 | H11: Program | I11: Program | J11: Planning | K11: Program | L11: Total
B13: Alabama | C13: 474932708 | D13: 219553768 | E13: 15903966 | F13: 1749787 | G13: 47252937 | H13: 4866013 | I13: 11836824 | J13: 3189632 | K13: 23153066 | L13: =SUM(C13:K13) -> 802438701
B14: Alaska | C14: 300528197 | D14: 143844359 | E14: 5255429 | F14: 1527922 | G14: 31804858 | H14: 1175000 | I14: 28553714 | J14: 2352197 | K14: 15294694 | L14: =SUM(C14:K14) -> 530336370
B15: Arizona | C15: 429149445 | D15: 197765549 | E15: 15780308 | F15: 1934863 | G15: 44248182 | H15: 2846528 | I15: 53827817 | J15: 6070322 | K15: 22239607 | L15: 773862621
B16: Arkansas | C16: 321356048 | D16: 149223826 | E16: 9893667 | F16: 1493969 | G16: 31251198 | H16: 4014302 | I16: 12776909 | J16: 1782328 | K16: 15811914 | L16: 547604161
B17: California | C17: 2004784895 | D17: 936862091 | E17: 70243076 | F17: 5756189 | G17: 203577200 | H17: 16427192 | I17: 481521988 | J17: 51902834 | K17: 110925731 | L17: 3882001196
B18: Colorado | C18: 310098755 | D18: 143558486 | E18: 10703299 | F18: 1591652 | G18: 30649742 | H18: 3380386 | I18: 43886376 | J18: 5486478 | K18: 16222667 | L18: 565577841
B19: Connecticut | C19: 288509952 | D19: 136106980 | E19: 8051388 | F19: 962216 | G19: 30289358 | H19: 1371623 | I19: 45904635 | J19: 4787589 | K19: 15248351 | L19: 531232092
B20: Delaware | C20: 99163045 | D20: 46029573 | E20: 2857957 | F20: 905680 | G20: 9707118 | H20: 1175000 | I20: 12100148 | J20: 1848512 | K20: 5128554 | L20: 178915587
B21: Dist. of Col. | C21: 94068969 | D21: 43925312 | E21: 2462399 | F21: 825098 | G21: 9148096 | H21: 1175000 | I21: 10481560 | J21: 1841216 | K21: 4834620 | L21: 168762270
B22: Florida | C22: 1187545011 | D22: 541333026 | E22: 49130914 | F22: 2602532 | G22: 121286842 | H22: 9033932 | I22: 14108735 | J22: 21478677 | K22: 57419594 | L22: 2003939263
B23: Georgia | C23: 774583890 | D23: 353929739 | E23: 32530791 | F23: 1740137 | G23: 76606885 | H23: 8395680 | I23: 70502679 | J23: 8059864 | K23: 39326159 | L23: 1365675824
B24: Hawaii | C24: 100029755 | D24: 46417113 | E24: 2813683 | F24: 960464 | G24: 9802230 | H24: 1175000 | I24: 10748120 | J24: 1814225 | K24: 5128817 | L24: 178889407
B25: Idaho | C25: 173126858 | D25: 81006484 | E25: 3985854 | F25: 1710560 | G25: 17110710 | H25: 1888171 | I25: 13295506 | J25: 1679591 | K25: 8714494 | L25: 302518228
B26: Illinois | C26: 824121299 | D26: 384427085 | E26: 28260632 | F26: 1525297 | G26: 79458104 | H26: 10980679 | I26: 114233544 | J26: 17700841 | K26: 43040166 | L26: 1503747647
B27: Indiana | C27: 573929689 | D27: 264260937 | E27: 22079877 | F27: 1201709 | G27: 55188237 | H27: 7794606 | I27: 48886752 | J27: 5429686 | K27: 29036329 | L27: 1007807822
B28: Iowa | C28: 305075988 | D28: 141709221 | E28: 9389410 | F28: 1374817 | G28: 27905347 | H28: 5573585 | I28: 11719839 | J28: 2057680 | K28: 14998347 | L28: 519804234
B29: Kansas | C29: 233761181 | D29: 106040102 | E29: 9439444 | F29: 1384250 | G29: 19285893 | H29: 6366977 | I29: 9874027 | J29: 2020623 | K29: 11519646 | L29: 399692143
B30: Kentucky | C30: 413581854 | D30: 193119256 | E30: 12114631 | F30: 1424395 | G30: 41564741 | H30: 3821586 | I30: 14214376 | J30: 2627941 | K30: 20281618 | L30: 702750398
B31: Louisiana | C31: 437834926 | D31: 206370413 | E31: 10850931 | F31: 1517643 | G31: 43782546 | H31: 4265305 | I31: 11876688 | J31: 4459930 | K31: 21374023 | L31: 742332405
B32: Maine | C32: 109882216 | D32: 51604239 | E32: 2058242 | F32: 1442741 | G32: 10741855 | H32: 1316581 | I32: 10684194 | J32: 1910988 | K32: 5599666 | L32: 195240722
B33: Maryland | C33: 343779908 | D33: 160433718 | E33: 11424717 | F33: 1123620 | G33: 35275881 | H33: 2450406 | I33: 55714117 | J33: 7193672 | K33: 18200526 | L33: 635596565
B34: Massachusetts | C34: 340126366 | D34: 159305633 | E34: 10967563 | F34: 1186729 | G34: 34742253 | H34: 2583096 | I34: 65804553 | J34: 9325022 | K34: 18333650 | L34: 642374865
B35: Michigan | C35: 616740081 | D35: 282352130 | E35: 24500248 | F35: 2853955 | G35: 59651409 | H35: 8029431 | I35: 76787788 | J35: 10742522 | K35: 31943624 | L35: 1113601188
B36: Minnesota | C36: 392143658 | D36: 179183151 | E36: 14892924 | F36: 2416048 | G36: 36696324 | H36: 6337384 | I36: 33437398 | J36: 4743233 | K36: 19840455 | L36: 689690575
B37: Mississippi | C37: 300318471 | D37: 139085772 | E37: 9644301 | F37: 1361924 | G37: 29342568 | H37: 3614276 | I37: 11640835 | J37: 1764056 | K37: 14767628 | L37: 511539831
B38: Missouri | C38: 585578573 | D38: 272448633 | E38: 18636252 | F38: 1663399 | G38: 58404643 | H38: 5856545 | I38: 24457454 | J38: 5392100 | K38: 28848571 | L38: 1001286170
B39: Montana | C39: 250994740 | D39: 119483271 | E39: 4501546 | F39: 1606705 | G39: 25557745 | H39: 1986329 | I39: 15446943 | J39: 1865012 | K39: 12517011 | L39: 433959302
B40: Nebraska | C40: 176700435 | D40: 81403371 | E40: 5800536 | F40: 1217387 | G40: 15562840 | H40: 3828204 | I40: 10674737 | J40: 1719353 | K40: 8805872 | L40: 305712735
B41: Nevada | C41: 208231028 | D41: 98278776 | E41: 5118674 | F41: 1357950 | G41: 21676200 | H41: 1175000 | I41: 33793873 | J41: 3405393 | K41: 11025691 | L41: 384062585
B42: New Hampshire | C42: 97646772 | D42: 45037162 | E42: 2693395 | F42: 1267944 | G42: 9540723 | H42: 1175000 | I42: 10738245 | J42: 1639937 | K42: 5014159 | L42: 174753337
B43: New Jersey | C43: 560762422 | D43: 264160678 | E43: 17225758 | F43: 1226757 | G43: 57648536 | H43: 3889336 | I43: 108006338 | J43: 12914367 | K43: 30211655 | L43: 1056045847
B44: New Mexico | C44: 225911588 | D44: 105401211 | E44: 6158457 | F44: 1429831 | G44: 23106110 | H44: 1685348 | I44: 11842136 | J44: 1669732 | K44: 11203119 | L44: 388407532
B45: New York | C45: 934710164 | D45: 441930932 | E45: 27292595 | F45: 2204556 | G45: 96044642 | H45: 6530124 | I45: 190080302 | J45: 25906408 | K45: 50665669 | L45: 1775365392
B46: North Carolina | C46: 628353233 | D46: 290614278 | E46: 22574906 | F46: 1613560 | G46: 62135374 | H46: 6819890 | I46: 53178847 | J46: 6034194 | K46: 31779228 | L46: 1103103510
B47: North Dakota | C47: 150496997 | D47: 70909003 | E47: 3319767 | F47: 1131881 | G47: 12573405 | H47: 3942083 | I47: 10915800 | J47: 1741728 | K47: 7555781 | L47: 262586445
B48: Ohio | C48: 785182769 | D48: 365270345 | E48: 27350112 | F48: 1671851 | G48: 77031664 | H48: 9134018 | I48: 99356559 | J48: 12017114 | K48: 40716803 | L48: 1417731235
B49: Oklahoma | C49: 395538748 | D49: 182804733 | E49: 13020292 | F49: 1787083 | G49: 37847184 | H49: 5559100 | I49: 12197155 | J49: 2682265 | K49: 19354096 | L49: 670790656
B50: Oregon | C50: 304013782 | D50: 142767557 | E50: 7814037 | F50: 1610153 | G50: 30291827 | H50: 3070539 | I50: 20129884 | J50: 3755145 | K50: 15204457 | L50: 528657381
B51: Pennsylvania | C51: 970280016 | D51: 458302596 | E51: 26560844 | F51: 1991266 | G51: 99576134 | H51: 6902055 | I51: 108429465 | J51: 13455742 | K51: 49876658 | L51: 1735374776
B52: Rhode Island | C52: 131561115 | D52: 62628735 | E52: 2426060 | F52: 865034 | G52: 13262470 | H52: 1175000 | I52: 10822462 | J52: 1926443 | K52: 6644226 | L52: 231311545
B53: South Carolina | C53: 416900234 | D53: 191944669 | E53: 15157163 | F53: 1211220 | G53: 41267943 | H53: 4482543 | I53: 13592138 | J53: 3267579 | K53: 20421841 | L53: 708245330
B54: South Dakota | C54: 170832772 | D54: 80027630 | E54: 4383744 | F54: 1137193 | G54: 16271561 | H54: 2475567 | I54: 12728075 | J54: 1833177 | K54: 8587060 | L54: 298276779
B55: Tennessee | C55: 512015897 | D55: 237355438 | E55: 17402983 | F55: 1640613 | G55: 51187585 | H55: 5000860 | I55: 38434605 | J55: 4986862 | K55: 25745682 | L55: 893770525
B56: Texas | C56: 2079582714 | D56: 960047229 | E56: 77823495 | F56: 3994822 | G56: 209149718 | H56: 19062961 | I56: 170820273 | J56: 25390435 | K56: 105017447 | L56: 3650889094
B57: Utah | C57: 211107595 | D57: 98936717 | E57: 5187512 | F57: 1561852 | G57: 21509966 | H57: 1656908 | I57: 13405456 | J57: 3361662 | K57: 10540488 | L57: 367268156
B58: Vermont | C58: 120419392 | D58: 57142924 | E58: 2234902 | F58: 1028010 | G58: 12039782 | H58: 1175000 | I58: 12291293 | J58: 2174681 | K58: 6154454 | L58: 214660438
B59: Virginia | C59: 608635827 | D59: 282401722 | E59: 21178294 | F59: 1527161 | G59: 62036436 | H59: 4755047 | I59: 56983865 | J59: 7842812 | K59: 30949337 | L59: 1076310501
B60: Washington | C60: 403750849 | D60: 189506569 | E60: 11076742 | F60: 1886270 | G60: 39988012 | H60: 4319465 | I60: 38341507 | J60: 7595903 | K60: 20547376 | L60: 717012693
B61: West Virginia | C61: 268491129 | D61: 127103749 | E61: 5884975 | F61: 1311075 | G61: 27370998 | H61: 2093125 | I61: 14861196 | J61: 1765853 | K61: 13338729 | L61: 462220829
B62: Wisconsin | C62: 459411061 | D62: 210262314 | E62: 17483397 | F62: 2167754 | G62: 44398395 | H62: 6017214 | I62: 28427520 | J62: 4742829 | K62: 22915361 | L62: 795825845
B63: Wyoming | C63: 155680862 | D63: 74168361 | E63: 2297911 | F63: 1474476 | G63: 15909363 | H63: 1175000 | I63: 10812072 | J63: 1640061 | K63: 7801375 | L63: 270959481
B65: Apportioned Total | C65: =SUM(C13:C63) -> 23261963879 | D65: =SUM(D13:D63) -> 10817786566 | E65: =SUM(E13:E63) -> 765840000 | F65: =SUM(F13:F63) -> 84160000 | G65: =SUM(G13:G63) -> 2317759770 | H65: 235000000 | I65: 2405187322 | J65: 342996446 | K65: 1189826092 | L65: 41420520075
B67: 1 Reflects $3,500,000 takedown for safety-related programs.
B69: Disclaimer: This technical assistance is provided in response to a Congressional request and is not intended to reflect the viewpoint or policies of any element of the
B70: Department of Transportation or the Administration.

Sheet FY 2019
A1: FHWA, HCFB-11 | B1: U.S. DEPARTMENT OF TRANSPORTATION | M1: =Comparison!L1 -> 2015-12-01
A2: =Comparison!A2 -> TA | B2: FEDERAL HIGHWAY ADMINISTRATION
B5: SUMMARY OF ESTIMATED FY 2019 APPORTIONMENTS UNDER THE CONFERENCE REPORT FOR H.R. 22 (FAST ACT)
B6: (before post-apportionment setasides; before penalties; before sequestration)
C8: National | D8: Surface | E8: Surface | F8: STBGP set-aside: | G8: Highway | H8: Railway-
C9: Highway | D9: Transportation | E9: Transportation | F9: Recreational | G9: Safety | H9: Highway | K9: National
C10: Performance | D10: Block Grant | E10: Block Grant | F10: Trails | G10: Improvement | H10: Crossings | I10: CMAQ | J10: Metropolitan | K10: Freight | L10: Apportioned
B11: State | C11: Program | D11: Program | E11: Set-aside | F11: Program | G11: Program 1 | H11: Program | I11: Program | J11: Planning | K11: Program | L11: Total
B13: Alabama | C13: 484665054 | D13: 223798297 | E13: 15903966 | F13: 1749787 | G13: 48104792 | H13: 4969545 | I13: 12053506 | J13: 3258116 | K13: 26047198 | L13: =SUM(C13:K13) -> 820550261
B14: Alaska | C14: 306715836 | D14: 146537119 | E14: 5255429 | F14: 1527922 | G14: 32384409 | H14: 1200000 | I14: 29076413 | J14: 2402700 | K14: 17206531 | L14: =SUM(C14:K14) -> 542306359
B15: Arizona | C15: 438006709 | D15: 201615831 | E15: 15780308 | F15: 1934863 | G15: 45050906 | H15: 2907092 | I15: 54813179 | J15: 6200655 | K15: 25019558 | L15: 791329101
B16: Arkansas | C16: 327947304 | D16: 152097244 | E16: 9893667 | F16: 1493969 | G16: 31812237 | H16: 4099712 | I16: 13010800 | J16: 1820596 | K16: 17788403 | L16: 559963932
B17: California | C17: 2046507174 | D17: 954930467 | E17: 70243076 | F17: 5756189 | G17: 207260565 | H17: 16776706 | I17: 490336634 | J17: 53017217 | K17: 124791447 | L17: 3969619475
B18: Colorado | C18: 316507189 | D18: 146342615 | E18: 10703299 | F18: 1591652 | G18: 31201622 | H18: 3452309 | I18: 44689751 | J18: 5604275 | K18: 18250501 | L18: 578343213
B19: Connecticut | C19: 294478744 | D19: 138698819 | E19: 8051388 | F19: 962216 | G19: 30840549 | H19: 1400807 | I19: 46744956 | J19: 4890381 | K19: 17154396 | L19: 543222256
B20: Delaware | C20: 101209812 | D20: 46919283 | E20: 2857957 | F20: 905680 | G20: 9881597 | H20: 1200000 | I20: 12321651 | J20: 1888201 | K20: 5769623 | L20: 182953804
B21: Dist. of Col. | C21: 96009347 | D21: 44769024 | E21: 2462399 | F21: 825098 | G21: 9312327 | H21: 1200000 | I21: 10673434 | J21: 1880748 | K21: 5438947 | L21: 172571324
B22: Florida | C22: 1211876986 | D22: 551945482 | E22: 49130914 | F22: 2602532 | G22: 123483528 | H22: 9226143 | I22: 14367007 | J22: 21939836 | K22: 64597043 | L22: 2049169471
B23: Georgia | C23: 790530387 | D23: 360869711 | E23: 32530791 | F23: 1740137 | G23: 77986426 | H23: 8574312 | I23: 71793287 | J23: 8232914 | K23: 44241929 | L23: 1396499894
B24: Hawaii | C24: 102092354 | D24: 47314114 | E24: 2813683 | F24: 960464 | G24: 9978452 | H24: 1200000 | I24: 10944873 | J24: 1853178 | K24: 5769918 | L24: 182927036
B25: Idaho | C25: 176687527 | D25: 82556800 | E25: 3985854 | F25: 1710560 | G25: 17418802 | H25: 1928345 | I25: 13538891 | J25: 1715653 | K25: 9803807 | L25: 309346239
B26: Illinois | C26: 841153272 | D26: 391826414 | E26: 28260632 | F26: 1525297 | G26: 80882297 | H26: 11214310 | I26: 116324681 | J26: 18080888 | K26: 48420187 | L26: 1537687978
B27: Indiana | C27: 585739987 | D27: 269401872 | E27: 22079877 | F27: 1201709 | G27: 56176926 | H27: 7960449 | I27: 49781663 | J27: 5546264 | K27: 32665871 | L27: 1030554618
B28: Iowa | C28: 311333252 | D28: 144437051 | E28: 9389410 | F28: 1374817 | G28: 28400459 | H28: 5692172 | I28: 11934381 | J28: 2101859 | K28: 16873141 | L28: 531536542
B29: Kansas | C29: 238557551 | D29: 108130701 | E29: 9439444 | F29: 1384250 | G29: 19620665 | H29: 6502445 | I29: 10054780 | J29: 2064007 | K29: 12959601 | L29: 408713444
B30: Kentucky | C30: 422062129 | D30: 196816699 | E30: 12114631 | F30: 1424395 | G30: 42315403 | H30: 3902897 | I30: 14474582 | J30: 2684363 | K30: 22816821 | L30: 718611920
B31: Louisiana | C31: 446810391 | D31: 210284182 | E31: 10850931 | F31: 1517643 | G31: 44572556 | H31: 4356056 | I31: 12094101 | J31: 4555687 | K31: 24045776 | L31: 759087323
B32: Maine | C32: 112146331 | D32: 52589201 | E32: 2058242 | F32: 1442741 | G32: 10934885 | H32: 1344593 | I32: 10879777 | J32: 1952019 | K32: 6299623 | L32: 199647412
B33: Maryland | C33: 350895502 | D33: 163522871 | E33: 11424717 | F33: 1123620 | G33: 35915301 | H33: 2502542 | I33: 56734009 | J33: 7348124 | K33: 20475593 | L33: 649942279
B34: Massachusetts | C34: 347183849 | D34: 162366097 | E34: 10967563 | F34: 1186729 | G34: 35371500 | H34: 2638056 | I34: 67009158 | J34: 9525236 | K34: 20625356 | L34: 656873544
B35: Michigan | C35: 629470947 | D35: 287885905 | E35: 24500248 | F35: 2853955 | G35: 60721221 | H35: 8200270 | I35: 78193450 | J35: 10973170 | K35: 35936577 | L35: 1138735743
B36: Minnesota | C36: 400214589 | D36: 182696085 | E36: 14892924 | F36: 2416048 | G36: 37350332 | H36: 6472222 | I36: 34049496 | J36: 4845074 | K36: 22320512 | L36: 705257282
B37: Mississippi | C37: 306477952 | D37: 141771015 | E37: 9644301 | F37: 1361924 | G37: 29869797 | H37: 3691175 | I37: 11853930 | J37: 1801932 | K37: 16613581 | L37: 523085607
B38: Missouri | C38: 597593678 | D38: 277685658 | E38: 18636252 | F38: 1663399 | G38: 59458001 | H38: 5981152 | I38: 24905168 | J38: 5507871 | K38: 32454643 | L38: 1023885822
B39: Montana | C39: 256150923 | D39: 121729463 | E39: 4501546 | F39: 1606705 | G39: 26020390 | H39: 2028592 | I39: 15729712 | J39: 1905055 | K39: 14081637 | L39: 443754023
B40: Nebraska | C40: 180330656 | D40: 82984755 | E40: 5800536 | F40: 1217387 | G40: 15836845 | H40: 3909655 | I40: 10870146 | J40: 1756269 | K40: 9906605 | L40: 312612854
B41: Nevada | C41: 212539820 | D41: 100149625 | E41: 5118674 | F41: 1357950 | G41: 22070084 | H41: 1200000 | I41: 34412497 | J41: 3478509 | K41: 12403902 | L41: 392731061
B42: New Hampshire | C42: 99660397 | D42: 45912832 | E42: 2693395 | F42: 1267944 | G42: 9712151 | H42: 1200000 | I42: 10934818 | J42: 1675147 | K42: 5640929 | L42: 178697613
B43: New Jersey | C43: 572394092 | D43: 269205503 | E43: 17225758 | F43: 1226757 | G43: 58693829 | H43: 3972088 | I43: 109983481 | J43: 13191645 | K43: 33988112 | L43: 1079881265
B44: New Mexico | C44: 230549663 | D44: 107422263 | E44: 6158457 | F44: 1429831 | G44: 23524701 | H44: 1721207 | I44: 12058915 | J44: 1705582 | K44: 12603509 | L44: 397174128
B45: New York | C45: 954118007 | D45: 450344545 | E45: 27292595 | F45: 2204556 | G45: 97785990 | H45: 6669063 | I45: 193559874 | J45: 26462633 | K45: 56998878 | L45: 1815436141
B46: North Carolina | C46: 641283107 | D46: 296242626 | E46: 22574906 | F46: 1613560 | G46: 63254282 | H46: 6964994 | I46: 54152328 | J46: 6163752 | K46: 35751631 | L46: 1128001186
B47: North Dakota | C47: 153591740 | D47: 72256555 | E47: 3319767 | F47: 1131881 | G47: 12792274 | H47: 4025957 | I47: 11115623 | J47: 1779124 | K47: 8500253 | L47: 268513174
B48: Ohio | C48: 801390642 | D48: 372315489 | E48: 27350112 | F48: 1671851 | G48: 78416817 | H48: 9328359 | I48: 101175360 | J48: 12275129 | K48: 45806403 | L48: 1449730162
B49: Oklahoma | C49: 403647376 | D49: 186340472 | E49: 13020292 | F49: 1787083 | G49: 38524581 | H49: 5677379 | I49: 12420433 | J49: 2739855 | K49: 21773358 | L49: 685930829
B50: Oregon | C50: 310263056 | D50: 145489152 | E50: 7814037 | F50: 1610153 | G50: 30838059 | H50: 3135869 | I50: 20498378 | J50: 3835770 | K50: 17105014 | L50: 540589488
B51: Pennsylvania | C51: 990287259 | D51: 467003476 | E51: 26560844 | F51: 1991266 | G51: 101381123 | H51: 7048907 | I51: 110414353 | J51: 13744644 | K51: 56111240 | L51: 1774543112
B52: Rhode Island | C52: 134268753 | D52: 63807273 | E52: 2426060 | F52: 865034 | G52: 13502122 | H52: 1200000 | I52: 11020576 | J52: 1967805 | K52: 7474754 | L52: 236532377
B53: South Carolina | C53: 425448365 | D53: 195671734 | E53: 15157163 | F53: 1211220 | G53: 42011217 | H53: 4577916 | I53: 13840953 | J53: 3337736 | K53: 22974571 | L53: 724230875
B54: South Dakota | C54: 174345960 | D54: 81557332 | E54: 4383744 | F54: 1137193 | G54: 16562541 | H54: 2528239 | I54: 12961072 | J54: 1872536 | K54: 9660442 | L54: 305009059
B55: Tennessee | C55: 522545255 | D55: 241940158 | E55: 17402983 | F55: 1640613 | G55: 52111169 | H55: 5107261 | I55: 39138181 | J55: 5093932 | K55: 28963893 | L55: 913943445
B56: Texas | C56: 2122375220 | D56: 978674696 | E56: 77823495 | F56: 3994822 | G56: 212927467 | H56: 19468556 | I56: 173947275 | J56: 25935582 | K56: 118144628 | L56: 3733291741
B57: Utah | C57: 215447317 | D57: 100826648 | E57: 5187512 | F57: 1561852 | G57: 21899382 | H57: 1692162 | I57: 13650853 | J57: 3433839 | K57: 11858049 | L57: 375557614
B58: Vermont | C58: 122901524 | D58: 58222554 | E58: 2234902 | F58: 1028010 | G58: 12257021 | H58: 1200000 | I58: 12516295 | J58: 2221373 | K58: 6923761 | L58: 219505440
B59: Virginia | C59: 621170088 | D59: 287855848 | E59: 21178294 | F59: 1527161 | G59: 63159613 | H59: 4856218 | I59: 58027001 | J59: 8011201 | K59: 34818004 | L59: 1100603428
B60: Washington | C60: 412069610 | D60: 193125598 | E60: 11076742 | F60: 1886270 | G60: 40708305 | H60: 4411368 | I60: 39043379 | J60: 7758991 | K60: 23115799 | L60: 733196062
B61: West Virginia | C61: 274004168 | D61: 129505912 | E61: 5884975 | F61: 1311075 | G61: 27866566 | H61: 2137660 | I61: 15133242 | J61: 1803768 | K61: 15006069 | L61: 472653435
B62: Wisconsin | C62: 468850711 | D62: 214374124 | E62: 17483397 | F62: 2167754 | G62: 45194533 | H62: 6145240 | I62: 28947908 | J62: 4844660 | K62: 25779782 | L62: 813788109
B63: Wyoming | C63: 158881333 | D63: 75562124 | E63: 2297911 | F63: 1474476 | G63: 16197535 | H63: 1200000 | I63: 11009996 | J63: 1675274 | K63: 8776547 | L63: 277075196
B65: Apportioned Total | C65: =SUM(C13:C63) -> 23741388895 | D65: =SUM(D13:D63) -> 11026329314 | E65: =SUM(E13:E63) -> 765840000 | F65: =SUM(F13:F63) -> 84160000 | G65: =SUM(G13:G63) -> 2359554152 | H65: 240000000 | I65: 2449216207 | J65: 350360775 | K65: 1338554353 | L65: 42355403696
B67: 1 Reflects $3,500,000 takedown for safety-related programs.
B69: Disclaimer: This technical assistance is provided in response to a Congressional request and is not intended to reflect the viewpoint or policies of any element of the
B70: Department of Transportation or the Administration.

Sheet FY 2020
A1: FHWA, HCFB-11 | B1: U.S. DEPARTMENT OF TRANSPORTATION | M1: =Comparison!L1 -> 2015-12-01
A2: =Comparison!A2 -> TA | B2: FEDERAL HIGHWAY ADMINISTRATION
B5: SUMMARY OF ESTIMATED FY 2020 APPORTIONMENTS UNDER THE CONFERENCE REPORT FOR H.R. 22 (FAST ACT)
B6: (before post-apportionment setasides; before penalties; before sequestration)
C8: National | D8: Surface | E8: Surface | F8: STBGP set-aside: | G8: Highway | H8: Railway-
C9: Highway | D9: Transportation | E9: Transportation | F9: Recreational | G9: Safety | H9: Highway | K9: National
C10: Performance | D10: Block Grant | E10: Block Grant | F10: Trails | G10: Improvement | H10: Crossings | I10: CMAQ | J10: Metropolitan | K10: Freight | L10: Apportioned
B11: State | C11: Program | D11: Program | E11: Set-aside | F11: Program | G11: Program 1 | H11: Program | I11: Program | J11: Planning | K11: Program | L11: Total
B13: Alabama | C13: 494741953 | D13: 229079050 | E13: 15903966 | F13: 1749787 | G13: 49080675 | H13: 5073078 | I13: 12298319 | J13: 3333954 | K13: 28941332 | L13: =SUM(C13:K13) -> 840202114
B14: Alaska | C14: 313099451 | D14: 149900123 | E14: 5255429 | F14: 1527922 | G14: 33042443 | H14: 1225000 | I14: 29666969 | J14: 2458627 | K14: 19118368 | L14: =SUM(C14:K14) -> 555294332
B15: Arizona | C15: 447127652 | D15: 206433876 | E15: 15780308 | F15: 1934863 | G15: 45965703 | H15: 2967657 | I15: 55926461 | J15: 6344986 | K15: 27799510 | L15: 810281016
B16: Arkansas | C16: 334767158 | D16: 155674801 | E16: 9893667 | F16: 1493969 | G16: 32457197 | H16: 4185123 | I16: 13275056 | J16: 1862973 | K16: 19764892 | L16: 573374836
B17: California | C17: 2089200481 | D17: 977691725 | E17: 70243076 | F17: 5756189 | G17: 211467482 | H17: 17126221 | I17: 500295608 | J17: 54251287 | K17: 138657164 | L17: 4064689233
B18: Colorado | C18: 323099910 | D18: 149830157 | E18: 10703299 | F18: 1591652 | G18: 31834485 | H18: 3524232 | I18: 45597422 | J18: 5734725 | K18: 20278334 | L18: 592194216
B19: Connecticut | C19: 300614078 | D19: 141948341 | E19: 8051388 | F19: 962216 | G19: 31467085 | H19: 1429990 | I19: 47694368 | J19: 5004214 | K19: 19060440 | L19: 556232120
B20: Delaware | C20: 103317410 | D20: 48032678 | E20: 2857957 | F20: 905680 | G20: 10081972 | H20: 1225000 | I20: 12571910 | J20: 1932152 | K20: 6410692 | L20: 187335451
B21: Dist. of Col. | C21: 98008370 | D21: 45824308 | E21: 2462399 | F21: 825098 | G21: 9501125 | H21: 1225000 | I21: 10890216 | J21: 1924525 | K21: 6043275 | L21: 176704316
B22: Florida | C22: 1237072962 | D22: 565147341 | E22: 49130914 | F22: 2602532 | G22: 125990342 | H22: 9418355 | I22: 14658808 | J22: 22450526 | K22: 71774492 | L22: 2098246272
B23: Georgia | C23: 806983187 | D23: 369536390 | E23: 32530791 | F23: 1740137 | G23: 79568253 | H23: 8752943 | I23: 73251443 | J23: 8424550 | K23: 49157698 | L23: 1429945392
B24: Hawaii | C24: 104217869 | D24: 48435729 | E24: 2813683 | F24: 960464 | G24: 10180798 | H24: 1225000 | I24: 11167168 | J24: 1896314 | K24: 6411020 | L24: 187308045
B25: Idaho | C25: 180364022 | D25: 84491297 | E25: 3985854 | F25: 1710560 | G25: 17772107 | H25: 1968519 | I25: 13813873 | J25: 1755588 | K25: 10893118 | L25: 316754938
B26: Illinois | C26: 858674356 | D26: 401095570 | E26: 28260632 | F26: 1525297 | G26: 82521711 | H26: 11447942 | I26: 118687291 | J26: 18501752 | K26: 53800208 | L26: 1574514759
B27: Indiana | C27: 597929430 | D27: 275819579 | E27: 22079877 | F27: 1201709 | G27: 57315499 | H27: 8126291 | I27: 50792752 | J27: 5675363 | K27: 36295412 | L27: 1055235912
B28: Iowa | C28: 317807590 | D28: 147833312 | E28: 9389410 | F28: 1374817 | G28: 28975242 | H28: 5810759 | I28: 12176773 | J28: 2150784 | K28: 18747935 | L28: 544266622
B29: Kansas | C29: 243518886 | D29: 110734377 | E29: 9439444 | F29: 1384250 | G29: 20016486 | H29: 6637912 | I29: 10258997 | J29: 2112050 | K29: 14399557 | L29: 418501959
B30: Kentucky | C30: 430838573 | D30: 201419066 | E30: 12114631 | F30: 1424395 | G30: 43174072 | H30: 3984207 | I30: 14768568 | J30: 2746847 | K30: 25352023 | L30: 735822382
B31: Louisiana | C31: 456100983 | D31: 215154892 | E31: 10850931 | F31: 1517643 | G31: 45476906 | H31: 4446807 | I31: 12339738 | J31: 4661728 | K31: 26717529 | L31: 777267157
B32: Maine | C32: 114480797 | D32: 53820085 | E32: 2058242 | F32: 1442741 | G32: 11156611 | H32: 1372605 | I32: 11100750 | J32: 1997455 | K32: 6999582 | L32: 204428868
B33: Maryland | C33: 358207008 | D33: 167397372 | E33: 11424717 | F33: 1123620 | G33: 36644501 | H33: 2554678 | I33: 57886304 | J33: 7519164 | K33: 22750659 | L33: 665508023
B34: Massachusetts | C34: 354421937 | D34: 166212282 | E34: 10967563 | F34: 1186729 | G34: 36089573 | H34: 2693015 | I34: 68370147 | J34: 9746953 | K34: 22917062 | L34: 672605261
B35: Michigan | C35: 642579319 | D35: 294811416 | E35: 24500248 | F35: 2853955 | G35: 61952096 | H35: 8371109 | I35: 79781597 | J35: 11228590 | K35: 39929529 | L35: 1166007859
B36: Minnesota | C36: 408543503 | D36: 187082092 | E36: 14892924 | F36: 2416048 | G36: 38106750 | H36: 6607060 | I36: 34741058 | J36: 4957851 | K36: 24800569 | L36: 722147855
B37: Mississippi | C37: 312851275 | D37: 145114162 | E37: 9644301 | F37: 1361924 | G37: 30475456 | H37: 3768074 | I37: 12094689 | J37: 1843875 | K37: 18459535 | L37: 535613291
B38: Missouri | C38: 610021980 | D38: 284207986 | E38: 18636252 | F38: 1663399 | G38: 60664284 | H38: 6105760 | I38: 25411004 | J38: 5636077 | K38: 36060713 | L38: 1048407455
B39: Montana | C39: 261479544 | D39: 124529653 | E39: 4501546 | F39: 1606705 | G39: 26548584 | H39: 2070854 | I39: 16049189 | J39: 1949398 | K39: 15646263 | L39: 454381736
B40: Nebraska | C40: 184082072 | D40: 84956284 | E40: 5800536 | F40: 1217387 | G40: 16156995 | H40: 3991106 | I40: 11090924 | J40: 1797149 | K40: 11007339 | L40: 320099792
B41: Nevada | C41: 216968180 | D41: 102495571 | E41: 5118674 | F41: 1357950 | G41: 22518347 | H41: 1225000 | I41: 35111432 | J41: 3559477 | K41: 13782114 | L41: 402136745
B42: New Hampshire | C42: 101735317 | D42: 47007847 | E42: 2693395 | F42: 1267944 | G42: 9909081 | H42: 1225000 | I42: 11156909 | J42: 1714138 | K42: 6267699 | L42: 182977330
B43: New Jersey | C43: 584326486 | D43: 275543785 | E43: 17225758 | F43: 1226757 | G43: 59885565 | H43: 4054840 | I43: 112217298 | J43: 13498704 | K43: 37764569 | L43: 1105743762
B44: New Mexico | C44: 235345075 | D44: 109940539 | E44: 6158457 | F44: 1429831 | G44: 24002290 | H44: 1757065 | I44: 12303838 | J44: 1745283 | K44: 14003898 | L44: 406686276
B45: New York | C45: 974012365 | D45: 460923887 | E45: 27292595 | F45: 2204556 | G45: 99771442 | H45: 6808001 | I45: 197491169 | J45: 27078598 | K45: 63332086 | L45: 1858914699
B46: North Carolina | C46: 654628340 | D46: 303268642 | E46: 22574906 | F46: 1613560 | G46: 64537286 | H46: 7110098 | I46: 55252188 | J46: 6307224 | K46: 39724034 | L46: 1155016278
B47: North Dakota | C47: 156787547 | D47: 73937819 | E47: 3319767 | F47: 1131881 | G47: 13050447 | H47: 4109831 | I47: 11341386 | J47: 1820536 | K47: 9444726 | L47: 274943940
B48: Ohio | C48: 818079139 | D48: 381132466 | E48: 27350112 | F48: 1671851 | G48: 80007024 | H48: 9522699 | I48: 103230281 | J48: 12560853 | K48: 50896004 | L48: 1484450429
B49: Oklahoma | C49: 412040523 | D49: 190740817 | E49: 13020292 | F49: 1787083 | G49: 39305274 | H49: 5795658 | I49: 12672698 | J49: 2803630 | K49: 24192620 | L49: 702358595
B50: Oregon | C50: 316718230 | D50: 148883721 | E50: 7814037 | F50: 1610153 | G50: 31463684 | H50: 3201200 | I50: 20914710 | J50: 3925054 | K50: 19005572 | L50: 553536361
B51: Pennsylvania | C51: 1010904618 | D51: 477883203 | E51: 26560844 | F51: 1991266 | G51: 103439501 | H51: 7195760 | I51: 112656922 | J51: 14064575 | K51: 62345822 | L51: 1817042511
B52: Rhode Island | C52: 137063015 | D52: 65278674 | E52: 2426060 | F52: 865034 | G52: 13776132 | H52: 1225000 | I52: 11244409 | J52: 2013608 | K52: 8305283 | L52: 242197215
B53: South Carolina | C53: 434295182 | D53: 200310893 | E53: 15157163 | F53: 1211220 | G53: 42863366 | H53: 4673289 | I53: 14122069 | J53: 3415428 | K53: 25527301 | L53: 741575911
B54: South Dakota | C54: 177973663 | D54: 83465974 | E54: 4383744 | F54: 1137193 | G54: 16898134 | H54: 2580911 | I54: 13224318 | J54: 1916123 | K54: 10733825 | L54: 312313885
B55: Tennessee | C55: 533418054 | D55: 247660488 | E55: 17402983 | F55: 1640613 | G55: 53168467 | H55: 5213662 | I55: 39933096 | J55: 5212502 | K55: 32182103 | L55: 935831968
B56: Texas | C56: 2166542312 | D56: 1001927908 | E56: 77823495 | F56: 3994822 | G56: 217248302 | H56: 19874151 | I56: 177480229 | J56: 26539278 | K56: 131271809 | L56: 3822702306
B57: Utah | C57: 219929852 | D57: 103184002 | E57: 5187512 | F57: 1561852 | G57: 22343929 | H57: 1727415 | I57: 13928109 | J57: 3513767 | K57: 13175610 | L57: 384552048
B58: Vermont | C58: 125460076 | D58: 59572136 | E58: 2234902 | F58: 1028010 | G58: 12505708 | H58: 1225000 | I58: 12770507 | J58: 2273079 | K58: 7693067 | L58: 224762485
B59: Virginia | C59: 634099034 | D59: 294668824 | E59: 21178294 | F59: 1527161 | G59: 64441735 | H59: 4957390 | I59: 59205557 | J59: 8197676 | K59: 38686671 | L59: 1126962342
B60: Washington | C60: 420647244 | D60: 197647993 | E60: 11076742 | F60: 1886270 | G60: 41534037 | H60: 4503272 | I60: 39836369 | J60: 7939596 | K60: 25684221 | L60: 750755744
B61: West Virginia | C61: 279703606 | D61: 132499407 | E61: 5884975 | F61: 1311075 | G61: 28432252 | H61: 2182195 | I61: 15440605 | J61: 1845754 | K61: 16673410 | L61: 483973279
B62: Wisconsin | C62: 478604493 | D62: 219500930 | E62: 17483397 | F62: 2167754 | G62: 46110646 | H62: 6273266 | I62: 29535854 | J62: 4957428 | K62: 28644202 | L62: 833277970
B63: Wyoming | C63: 162187007 | D63: 77300661 | E63: 2297911 | F63: 1474476 | G63: 16526363 | H63: 1225000 | I63: 11233614 | J63: 1714269 | K63: 9751719 | L63: 283711020
B65: Apportioned Total | C65: =SUM(C13:C63) -> 24235621114 | D65: =SUM(D13:D63) -> 11286990131 | E65: =SUM(E13:E63) -> 765840000 | F65: =SUM(F13:F63) -> 84160000 | G65: =SUM(G13:G63) -> 2407423445 | H65: 245000000 | I65: 2498960969 | J65: 358516037 | K65: 1487282615 | L65: 43369794311
B67: 1 Reflects $3,500,000 takedown for safety-related programs.
B69: Disclaimer: This technical assistance is provided in response to a Congressional request and is not intended to reflect the viewpoint or policies of any element of the
B70: Department of Transportation or the Administration.
